Workbook

Sheet DATOS
B2: DATOS PERSONALES Y LABORALES | G2: RESULTADOS COMPLEMENTO JUBILACIÓN | Q2: DATOS SELECCIONABLES | V2: VALOR ACTUAL ACTUARIAL | AY2: Sexo (V=1, M=2) | BA2: =IF($R$4=TRUE,1,2) -> 1
AA3: RESUMEN DE DATOS PARA EL PERIODO TRANSITORIO | AY3: Año (2014-2063) | BA3: =YEAR($AC$65) -> 2047
B4: Sexo | G4: Información del primer año tras la jubilación | Q4: Sexo | R4: TRUE | S4: FALSE | V4: Edad | W4: Factor | X4: Factor IRP | AJ4: Actualizaciones | AL4: Año validez | AM4: 2018
C5: =IF(S4=TRUE,"Número de hijos a efectos del complemento por maternidad:","") ->  | D5: Dos | I5: Mensual | J5: =IFERROR(CONCATENATE("% salario neto previo a la jubilación (",ROUND(W79,0)," €)"),"") ->  | Q5: CCAA | R5: Media España | U5: =V5-60 -> 1 | V5: 61 | W5: =VAACF($C$73,$C$78,$AY8:$AY$47) -> 28.56159945 | X5: =VAACF($C$73,$C$79,$AY8:$AY$47) -> 22.29557317 | AA5: Año | AB5: Años B.Reg. | AC5: Edad Jub. normal | AD5: Años cot. Jub. 65 | AE5: Límite 1 meses cot. | AF5: % | AG5: Límite 2 meses cot. | AH5: % | AJ5: Quitar una fila al rango Transitorio | BB5: Probabilidades de supervivencia con promedio de años vividos (proviene de Datos para el simulador - Probabilidades)
B6: Fecha de nacimiento (día / mes / año) | C6: 1 | D6: 1 | E6: 1980 | G6: Datos en € actuales | H6: Anual | I6: (14 pagas) | Q6: Régimen | R6: TRUE | S6: FALSE | U6: =V6-60 -> 2 | V6: 62 | W6: =VAACF($C$73,$C$78,$AY9:$AY$47) -> 27.5873632 | X6: =VAACF($C$73,$C$79,$AY9:$AY$47) -> 21.69009459 | AA6: 2017 | AB6: 20 | AC6: =65+(5/12) -> 65.41666667 | AD6: =36+(3/12) -> 36.25 | AE6: 163 | AF6: 0.0021 | AG6: 246 | AH6: 0.0019 | AJ6: Actualizar el año validez | AY6: Columna | AZ6: Hombre | BA6: Años
G7: GASTOS PREVISTOS EN LA JUBILACIÓN | H7: =IF(C37=0,"",C37*12) ->  | I7: =IFERROR(H7/14,"") ->  | J7: =IFERROR(H7/$W$79,"") ->  | Q7: Ahorro actual | R7: 0 | U7: 3 | V7: 63 | W7: =VAACF($C$73,$C$78,$AY10:$AY$47) -> 26.62904106 | X7: =VAACF($C$73,$C$79,$AY10:$AY$47) -> 21.08680474 | AA7: 2018 | AB7: 21 | AC7: =65+(6/12) -> 65.5 | AD7: =36+(6/12) -> 36.5 | AE7: 163 | AF7: 0.0021 | AG7: 246 | AH7: 0.0019 | AJ7: Nuevas probabilidades supervivencia (cada dos años) | AY7: aplicable | AZ7: Edades | BA7: 2016 | BB7: 2017 | BC7: 2018 | BD7: 2019 | BE7: 2020 | BF7: 2021 | BG7: 2022 | BH7: 2023 | BI7: 2024 | BJ7: 2025 | BK7: 2026 | BL7: 2027 | BM7: 2028 | BN7: 2029 | BO7: 2030 | BP7: 2031 | BQ7: 2032 | BR7: 2033 | BS7: 2034 | BT7: 2035 | BU7: 2036 | BV7: 2037 | BW7: 2038 | BX7: 2039 | BY7: 2040 | BZ7: 2041 | CA7: 2042 | CB7: 2043 | CC7: 2044 | CD7: 2045 | CE7: 2046 | CF7: 2047 | CG7: 2048 | CH7: 2049 | CI7: 2050 | CJ7: 2051 | CK7: 2052 | CL7: 2053 | CM7: 2054 | CN7: 2055 | CO7: 2056 | CP7: 2057 | CQ7: 2058 | CR7: 2059 | CS7: 2060 | CT7: 2061 | CU7: 2062 | CV7: 2063 | CW7: 2064 | CX7: 2065
B8: Comunidad Autónoma | G8: INGRESOS NETOS PREVISTOS EN LA JUBILACIÓN | H8: =IFERROR(V92,"") ->  | I8: =IFERROR(H8/14,"") ->  | J8: =IFERROR(H8/$W$79,"") ->  | Q8: Perfil de riesgo | R8: Decreciente con la edad | U8: 4 | V8: 64 | W8: =VAACF($C$73,$C$78,$AY11:$AY$47) -> 25.68257087 | X8: =VAACF($C$73,$C$79,$AY11:$AY$47) -> 20.48266592 | AA8: 2019 | AB8: 22 | AC8: =65+(8/12) -> 65.66666667 | AD8: =36+(9/12) -> 36.75 | AE8: 163 | AF8: 0.0021 | AG8: 246 | AH8: 0.0019 | AJ8: Nuevas bases de cotización (también validación de datos) | AY8: =IF($BA$2=1,HLOOKUP($BA$3,$BA$7:$CX$47,AZ8-59),HLOOKUP($BA$3,$BA$50:$CX$90,AZ8-59)) -> 0.9945621408 | AZ8: 61 | BA8: 0.9914351542 | BB8: 0.991559726 | BC8: 0.9916831713 | BD8: 0.9918045438 | BE8: 0.991923817 | BF8: 0.9920415303 | BG8: 0.9921581821 | BH8: 0.9922717795 | BI8: 0.9923848177 | BJ8: 0.9924953226 | BK8: 0.9926047878 | BL8: 0.9927127065 | BM8: 0.9928185927 | BN8: 0.9929229597 | BO8: 0.9930257887 | BP8: 0.9931275922 | BQ8: 0.9932273729 | BR8: 0.9933256431 | BS8: 0.9934228713 | BT8: 0.9935185921 | BU8: 0.9936122963 | BV8: 0.9937049843 | BW8: 0.9937966572 | BX8: 0.9938873159 | BY8: 0.9939759624 | BZ8: 0.9940630857 | CA8: 0.9941497081 | CB8: 0.9942348088 | CC8: 0.9943184111 | CD8: 0.9944010038 | CE8: 0.9944820766 | CF8: 0.9945621408 | CG8: 0.994641197 | CH8: 0.9947187577 | CI8: 0.9947957991 | CJ8: 0.9948713461 | CK8: 0.9949458867 | CL8: 0.9950193981 | CM8: 0.9950914162 | CN8: 0.99516294 | CO8: 0.9952329478 | CP8: 0.9953019509 | CQ8: 0.9953704606 | CR8: 0.9954374552 | CS8: 0.9955034458 | CT8: 0.9955694312 | CU8: 0.9956334147 | CV8: 0.995696395 | CW8: 0.9957593705 | CX8: 0.995820856
G9: Pensión pública probable | H9: =IFERROR(V83,"") ->  | I9: =IFERROR(H9/14,"") ->  | J9: =IFERROR(H9/$W$79,"") ->  | Q9: Edad de jubilación | R9: 780 | U9: 5 | V9: 65 | W9: =VAACF($C$73,$C$78,$AY12:$AY$47) -> 24.7465498 | X9: =VAACF($C$73,$C$79,$AY12:$AY$47) -> 19.87666648 | AA9: 2020 | AB9: 23 | AC9: =65+(10/12) -> 65.83333333 | AD9: =37+(0/12) -> 37 | AE9: 106 | AF9: 0.0021 | AG9: 252 | AH9: 0.0019 | AJ9: Nuevos límites de pensiones | AY9: =IF($BA$2=1,HLOOKUP($BA$3,$BA$7:$CX$47,AZ9-59),HLOOKUP($BA$3,$BA$50:$CX$90,AZ9-59)) -> 0.9939601674 | AZ9: 62 | BA9: 0.9907559494 | BB9: 0.9908790143 | BC9: 0.9910021039 | BD9: 0.9911226246 | BE9: 0.9912425265 | BF9: 0.9913607558 | BG9: 0.991477782 | BH9: 0.9915930481 | BI9: 0.9917075599 | BJ9: 0.9918197624 | BK9: 0.9919311525 | BL9: 0.9920412154 | BM9: 0.9921499223 | BN9: 0.9922567616 | BO9: 0.992362232 | BP9: 0.9924668205 | BQ9: 0.9925700067 | BR9: 0.9926712838 | BS9: 0.9927716659 | BT9: 0.9928706222 | BU9: 0.9929681464 | BV9: 0.9930642451 | BW9: 0.9931594119 | BX9: 0.9932536421 | BY9: 0.9933459205 | BZ9: 0.9934372537 | CA9: 0.993527638 | CB9: 0.9936165704 | CC9: 0.9937040354 | CD9: 0.9937905416 | CE9: 0.9938760865 | CF9: 0.9939601674 | CG9: 0.994043782 | CH9: 0.9941254156 | CI9: 0.9942060901 | CJ9: 0.9942857798 | CK9: 0.9943644948 | CL9: 0.9944422448 | CM9: 0.994519005 | CN9: 0.9945942846 | CO9: 0.9946685827 | CP9: 0.994742399 | CQ9: 0.9948147303 | CR9: 0.994886076 | CS9: 0.9949564351 | CT9: 0.9950263189 | CU9: 0.9950947013 | CV9: 0.9951620937 | CW9: 0.9952295092 | CX9: 0.9952949187
B10: Salario anual bruto (€) | C10: 0 | G10: Rentas del ahorro privado | H10: =IFERROR(V90,"") ->  | I10: =IFERROR(H10/14,"") ->  | J10: =IFERROR(H10/$W$79,"") ->  | Q10: Pensión estimada por la SS | R10: FALSE | S10: TRUE | U10: 6 | V10: 66 | W10: =VAACF($C$73,$C$78,$AY13:$AY$47) -> 23.82646616 | X10: =VAACF($C$73,$C$79,$AY13:$AY$47) -> 19.27335922 | AA10: 2021 | AB10: 24 | AC10: =66+(0/12) -> 66 | AD10: =37+(3/12) -> 37.25 | AE10: 106 | AF10: 0.0021 | AG10: 252 | AH10: 0.0019 | AY10: 0.9934691696 | AZ10: 63 | BA10: 0.9899759684 | BB10: 0.990115378 | BC10: 0.9902533202 | BD10: 0.9903883583 | BE10: 0.9905215552 | BF10: 0.9906529449 | BG10: 0.990782069 | BH10: 0.9909094612 | BI10: 0.9910346434 | BJ10: 0.9911576374 | BK10: 0.9912794592 | BL10: 0.9913991275 | BM10: 0.9915176534 | BN10: 0.9916340523 | BO10: 0.9917483357 | BP10: 0.9918615092 | BQ10: 0.9919735812 | BR10: 0.9920835638 | BS10: 0.9921914642 | BT10: 0.9922982842 | BU10: 0.9924035355 | BV10: 0.9925072158 | BW10: 0.9926098311 | BX10: 0.992710892 | BY10: 0.9928103952 | BZ10: 0.9929083516 | CA10: 0.9930052583 | CB10: 0.9931006178 | CC10: 0.99319444 | CD10: 0.9932877146 | CE10: 0.9933789635 | CF10: 0.9934691696 | CG10: 0.9935583481 | CH10: 0.9936464879 | CI10: 0.9937326045 | CJ10: 0.9938176991 | CK10: 0.9939022603 | CL10: 0.9939848036 | CM10: 0.994067316 | CN10: 0.9941478135 | CO10: 0.9942272902 | CP10: 0.9943062464 | CQ10: 0.9943836851 | CR10: 0.9944601066 | CS10: 0.9945355119 | CT10: 0.9946094089 | CU10: 0.9946827848 | CV10: 0.9947551476 | CW10: 0.9948265033 | CX10: 0.9948968421
B11: Régimen de cotización | G11: RESULTADO (Necesidad de ingresos adicionales) | H11: =IFERROR(V93,"") ->  | I11: =IFERROR(H11/14,"") ->  | J11: =IFERROR(H11/$W$79,"") ->  | U11: 7 | V11: 67 | W11: =VAACF($C$73,$C$78,$AY14:$AY$47) -> 22.90636632 | X11: =VAACF($C$73,$C$79,$AY14:$AY$47) -> 18.65990628 | AA11: 2022 | AB11: 25 | AC11: =66+(2/12) -> 66.16666667 | AD11: =37+(6/12) -> 37.5 | AE11: 106 | AF11: 0.0021 | AG11: 252 | AH11: 0.0019 | AY11: 0.9929975051 | AZ11: 64 | BA11: 0.9893055859 | BB11: 0.9894520059 | BC11: 0.989596149 | BD11: 0.9897385312 | BE11: 0.9898782115 | BF11: 0.9900166997 | BG11: 0.9901530261 | BH11: 0.9902867233 | BI11: 0.9904187822 | BJ11: 0.9905487297 | BK11: 0.9906770839 | BL11: 0.9908038359 | BM11: 0.9909285283 | BN11: 0.9910516355 | BO11: 0.9911726786 | BP11: 0.9912926557 | BQ11: 0.9914106014 | BR11: 0.9915274708 | BS11: 0.9916418126 | BT11: 0.9917551075 | BU11: 0.9918663681 | BV11: 0.9919765887 | BW11: 0.9920852878 | BX11: 0.9921919621 | BY11: 0.9922980893 | BZ11: 0.9924017123 | CA11: 0.9925043085 | CB11: 0.9926058797 | CC11: 0.9927054374 | CD11: 0.9928044804 | CE11: 0.9929014904 | CF11: 0.9929975051 | CG11: 0.9930915129 | CH11: 0.9931854954 | CI11: 0.9932774736 | CJ11: 0.993367932 | CK11: 0.9934574019 | CL11: 0.9935458372 | CM11: 0.9936332862 | CN11: 0.9937187364 | CO11: 0.9938036613 | CP11: 0.9938870959 | CQ11: 0.993969524 | CR11: 0.9940509461 | CS11: 0.9941313631 | CT11: 0.9942102686 | CU11: 0.994288677 | CV11: 0.9943655996 | CW11: 0.994441495 | CX11: 0.9945164127
D12: Base de cotización mensual | Q12: DATOS A ACTUALIZAR CADA AÑO | U12: 8 | V12: 68 | W12: =VAACF($C$73,$C$78,$AY15:$AY$47) -> 22.00273838 | X12: =VAACF($C$73,$C$79,$AY15:$AY$47) -> 18.04973373 | AA12: 2023 | AB12: 25 | AC12: =66+(4/12) -> 66.33333333 | AD12: =37+(9/12) -> 37.75 | AE12: 49 | AF12: 0.0021 | AG12: 258 | AH12: 0.0019 | AY12: 0.9922670535 | AZ12: 65 | BA12: 0.9882806599 | BB12: 0.9884330928 | BC12: 0.988583369 | BD12: 0.9887328854 | BE12: 0.9888800161 | BF12: 0.9890267059 | BG12: 0.989171372 | BH12: 0.9893139466 | BI12: 0.9894554077 | BJ12: 0.9895952019 | BK12: 0.9897332942 | BL12: 0.989870168 | BM12: 0.9900047693 | BN12: 0.9901381026 | BO12: 0.9902696334 | BP12: 0.9903998577 | BQ12: 0.9905277303 | BR12: 0.9906547802 | BS12: 0.9907794501 | BT12: 0.990903262 | BU12: 0.991025186 | BV12: 0.9911457272 | BW12: 0.9912643614 | BX12: 0.9913810799 | BY12: 0.9914974115 | BZ12: 0.9916112973 | CA12: 0.9917242675 | CB12: 0.9918358109 | CC12: 0.9919454059 | CD12: 0.992054069 | CE12: 0.9921612898 | CF12: 0.9922670535 | CG12: 0.9923708497 | CH12: 0.9924737073 | CI12: 0.9925756024 | CJ12: 0.9926755289 | CK12: 0.9927744863 | CL12: 0.9928719854 | CM12: 0.9929685097 | CN12: 0.9930630428 | CO12: 0.9931571232 | CP12: 0.9932492072 | CQ12: 0.9933403166 | CR12: 0.9934304495 | CS12: 0.9935190964 | CT12: 0.9936067627 | CU12: 0.9936934467 | CV12: 0.9937786291 | CW12: 0.9938633433 | CX12: 0.9939460448
D13: 893.1 | G13: Información de los años siguientes tras la jubilación | R13: RG | S13: Autónomos | U13: 9 | V13: 69 | W13: =VAACF($C$73,$C$78,$AY16:$AY$47) -> 21.10501677 | X13: =VAACF($C$73,$C$79,$AY16:$AY$47) -> 17.43431276 | AA13: 2024 | AB13: 25 | AC13: =66+(6/12) -> 66.5 | AD13: =38+(0/12) -> 38 | AE13: 49 | AF13: 0.0021 | AG13: 258 | AH13: 0.0019 | AY13: 0.9921566036 | AZ13: 66 | BA13: 0.9876051722 | BB13: 0.9877930098 | BC13: 0.9879770962 | BD13: 0.9881571381 | BE13: 0.9883337605 | BF13: 0.988507592 | BG13: 0.9886782213 | BH13: 0.9888457422 | BI13: 0.9890102242 | BJ13: 0.9891722126 | BK13: 0.9893317576 | BL13: 0.989488418 | BM13: 0.9896427174 | BN13: 0.9897946893 | BO13: 0.9899438793 | BP13: 0.9900907983 | BQ13: 0.9902354699 | BR13: 0.9903774318 | BS13: 0.9905176701 | BT13: 0.9906557311 | BU13: 0.990791618 | BV13: 0.9909253451 | BW13: 0.9910569257 | BX13: 0.9911863717 | BY13: 0.9913141891 | BZ13: 0.991439893 | CA13: 0.9915639875 | CB13: 0.9916859866 | CC13: 0.9918063797 | CD13: 0.9919247062 | CE13: 0.992041441 | CF13: 0.9921566036 | CG13: 0.992269706 | CH13: 0.9923807542 | CI13: 0.9924912215 | CJ13: 0.9925991511 | CK13: 0.9927060288 | CL13: 0.9928108584 | CM13: 0.9929146444 | CN13: 0.993016404 | CO13: 0.9931171139 | CP13: 0.9932162844 | CQ13: 0.9933134529 | CR13: 0.9934100607 | CS13: 0.9935046592 | CT13: 0.9935977442 | CU13: 0.9936897974 | CV13: 0.9937803424 | CW13: 0.9938698604 | CX13: 0.9939578613
G14: ¿Tendré necesidad de ingresos extra debido a pérdidas de poder adquisitivo de la pensión? | H14: =IF(H7="","",IF(J124>0,"SI","NO")) ->  | Q14: Base mínima | R14: 858.6 | S14: 919.8 | U14: 10 | V14: 70 | W14: =VAACF($C$73,$C$78,$AY17:$AY$47) -> 20.21436539 | X14: =VAACF($C$73,$C$79,$AY17:$AY$47) -> 16.81459461 | AA14: 2025 | AB14: 25 | AC14: =66+(8/12) -> 66.66666667 | AD14: =38+(3/12) -> 38.25 | AE14: 49 | AF14: 0.0021 | AG14: 258 | AH14: 0.0019 | AY14: 0.9913112456 | AZ14: 67 | BA14: 0.9862635423 | BB14: 0.9864607873 | BC14: 0.9866559617 | BD14: 0.9868484033 | BE14: 0.9870390281 | BF14: 0.9872272372 | BG14: 0.9874129764 | BH14: 0.9875966632 | BI14: 0.9877772558 | BJ14: 0.9879557204 | BK14: 0.9881320201 | BL14: 0.9883056082 | BM14: 0.9884774668 | BN14: 0.9886465804 | BO14: 0.9888129069 | BP14: 0.9889774382 | BQ14: 0.9891396614 | BR14: 0.9892990445 | BS14: 0.9894571023 | BT14: 0.9896122929 | BU14: 0.9897656173 | BV14: 0.9899160732 | BW14: 0.990065139 | BX14: 0.9902118137 | BY14: 0.9903560893 | BZ14: 0.9904984544 | CA14: 0.9906389021 | CB14: 0.9907774259 | CC14: 0.9909140425 | CD14: 0.991048205 | CE14: 0.9911809461 | CF14: 0.9913112456 | CG14: 0.9914400918 | CH14: 0.9915664875 | CI14: 0.9916914448 | CJ14: 0.9918144404 | CK14: 0.9919354709 | CL14: 0.9920555495 | CM14: 0.9921731598 | CN14: 0.9922887954 | CO14: 0.9924034708 | CP14: 0.9925161897 | CQ14: 0.9926269024 | CR14: 0.9927366715 | CS14: 0.9928444534 | CT14: 0.9929507428 | CU14: 0.9930550647 | CV14: 0.9931578901 | CW14: 0.9932597383 | CX14: 0.9933601107
C15: Años | D15: Meses | Q15: Base máxima | R15: 3751.2 | S15: 3751.2 | U15: 11 | V15: 71 | W15: =VAACF($C$73,$C$78,$AY18:$AY$47) -> 19.32404102 | X15: =VAACF($C$73,$C$79,$AY18:$AY$47) -> 16.18490635 | AA15: 2026 | AB15: 25 | AC15: =66+(10/12) -> 66.83333333 | AD15: =38+(3/12) -> 38.25 | AE15: 49 | AF15: 0.0021 | AG15: 258 | AH15: 0.0019 | AY15: 0.9908824768 | AZ15: 68 | BA15: 0.9850742185 | BB15: 0.9853072698 | BC15: 0.9855363839 | BD15: 0.9857629804 | BE15: 0.9859859948 | BF15: 0.9862058719 | BG15: 0.9864225625 | BH15: 0.9866360384 | BI15: 0.9868462595 | BJ15: 0.9870532028 | BK15: 0.9872573464 | BL15: 0.9874581689 | BM15: 0.9876561568 | BN15: 0.9878507874 | BO15: 0.9880425519 | BP15: 0.98823144 | BQ15: 0.9884169361 | BR15: 0.9886000357 | BS15: 0.9887802286 | BT15: 0.9889580089 | BU15: 0.9891328668 | BV15: 0.9893042911 | BW15: 0.9894737873 | BX15: 0.9896403422 | BY15: 0.9898044547 | BZ15: 0.9899656158 | CA15: 0.9901248293 | CB15: 0.9902810823 | CC15: 0.9904353811 | CD15: 0.9905867119 | CE15: 0.990736081 | CF15: 0.9908824768 | CG15: 0.9910274086 | CH15: 0.9911693616 | CI15: 0.9913093421 | CJ15: 0.991447348 | CK15: 0.9915828713 | CL15: 0.991716413 | CM15: 0.9918479764 | CN15: 0.9919770512 | CO15: 0.9921046447 | CP15: 0.992229749 | CQ15: 0.9923528625 | CR15: 0.9924744934 | CS15: 0.9925936272 | CT15: 0.9927117791 | CU15: 0.9928269282 | CV15: 0.9929405859 | CW15: 0.9930532583 | CX15: 0.9931634271
B16: Tiempo cotizado hasta hoy | C16: 0 | D16: 0 | Q16: Pensión mínima | R16: 606.7 | U16: 12 | V16: 72 | W16: =VAACF($C$73,$C$78,$AY19:$AY$47) -> 18.44331046 | X16: =VAACF($C$73,$C$79,$AY19:$AY$47) -> 15.55293697 | AA16: 2027 | AB16: 25 | AC16: 67 | AD16: =38+(6/12) -> 38.5 | AE16: 248 | AF16: 0.0019 | AG16: 264 | AH16: 0.0018 | AY16: 0.9903623534 | AZ16: 69 | BA16: 0.9838037863 | BB16: 0.9840675399 | BC16: 0.9843279407 | BD16: 0.9845848169 | BE16: 0.9848375346 | BF16: 0.9850869905 | BG16: 0.9853330889 | BH16: 0.9855747539 | BI16: 0.9858129197 | BJ16: 0.9860475398 | BK16: 0.9862790666 | BL16: 0.9865064514 | BM16: 0.9867306779 | BN16: 0.9869506825 | BO16: 0.9871679677 | BP16: 0.987381501 | BQ16: 0.9875912606 | BR16: 0.9877982207 | BS16: 0.9880013689 | BT16: 0.9882016822 | BU16: 0.9883986659 | BV16: 0.9885917756 | BW16: 0.9887825411 | BX16: 0.9889699229 | BY16: 0.9891544056 | BZ16: 0.9893355034 | CA16: 0.9895141989 | CB16: 0.9896889771 | CC16: 0.9898618321 | CD16: 0.9900312715 | CE16: 0.9901982789 | CF16: 0.9903623534 | CG16: 0.990523984 | CH16: 0.9906826706 | CI16: 0.9908389025 | CJ16: 0.9909926748 | CK16: 0.9911434886 | CL16: 0.9912918592 | CM16: 0.9914382514 | CN16: 0.9915816735 | CO16: 0.9917231355 | CP16: 0.9918621142 | CQ16: 0.9919981126 | CR16: 0.9921326351 | CS16: 0.9922646925 | CT16: 0.9923947474 | CU16: 0.9925223322 | CV16: 0.9926479379 | CW16: 0.9927715331 | CX16: 0.9928926518
G17: =IFERROR(IF(OR(Año=0,Años_cotizados=0,Años_edad_jubilación=0)=TRUE,"",IF(AA35<=YEAR(S74),"El año de jubilación debe ser "&YEAR(S74)+1&" o superior: aumente el año de nacimiento o la edad de jubilación para una simulación válida",IF(Años_cotizados>YEAR(S74)-Año-16,"Los años cotizados no pueden dar lugar a cotizaciones antes de los 16 años: disminuya su valor para una simulación válida",IF(Años_edad_jubilación+Meses_edad_jubilación/12<C29+D29/12,"Edad de jubilación incoherente","")))),"") ->  | Q17: Pensión máxima | R17: 2580.13 | U17: 13 | V17: 73 | W17: =VAACF($C$73,$C$78,$AY20:$AY$47) -> 17.5729148 | X17: =VAACF($C$73,$C$79,$AY20:$AY$47) -> 14.91938935 | AY17: 0.9901336111 | AZ17: 70 | BA17: 0.9826369253 | BB17: 0.9829553346 | BC17: 0.9832680653 | BD17: 0.9835738024 | BE17: 0.9838736805 | BF17: 0.9841673143 | BG17: 0.9844552962 | BH17: 0.9847377058 | BI17: 0.9850146106 | BJ17: 0.9852860617 | BK17: 0.9855526048 | BL17: 0.9858137911 | BM17: 0.9860706384 | BN17: 0.9863217091 | BO17: 0.9865690005 | BP17: 0.9868110498 | BQ17: 0.9870493775 | BR17: 0.9872825061 | BS17: 0.9875114529 | BT17: 0.9877362352 | BU17: 0.9879573548 | BV17: 0.9881733528 | BW17: 0.9883867003 | BX17: 0.9885954361 | BY17: 0.9888000718 | BZ17: 0.9890011021 | CA17: 0.9891990366 | CB17: 0.9893928987 | CC17: 0.9895831803 | CD17: 0.9897698882 | CE17: 0.9899535302 | CF17: 0.9901336111 | CG17: 0.9903106383 | CH17: 0.9904846174 | CI17: 0.9906550517 | CJ17: 0.9908224479 | CK17: 0.9909868108 | CL17: 0.9911486254 | CM17: 0.9913069125 | CN17: 0.9914626807 | CO17: 0.9916159115 | CP17: 0.9917656253 | CQ17: 0.9919128311 | CR17: 0.9920575086 | CS17: 0.9922001634 | CT17: 0.9923393131 | CU17: 0.9924764453 | CV17: 0.992611059 | CW17: 0.9927431817 | CX17: 0.9928727904
B18: DATOS PERFIL DE AHORRO | U18: 14 | V18: 74 | W18: =VAACF($C$73,$C$78,$AY21:$AY$47) -> 16.71803698 | X18: =VAACF($C$73,$C$79,$AY21:$AY$47) -> 14.28880895 | AY18: 0.9894000361 | AZ18: 71 | BA18: 0.9810859752 | BB18: 0.9814355177 | BC18: 0.9817791259 | BD18: 0.9821157937 | BE18: 0.9824470092 | BF18: 0.9827717624 | BG18: 0.983090064 | BH18: 0.9834033985 | BI18: 0.9837107705 | BJ18: 0.9840121719 | BK18: 0.9843076058 | BL18: 0.9845980642 | BM18: 0.9848830486 | BN18: 0.9851625573 | BO18: 0.9854375878 | BP18: 0.9857066391 | BQ18: 0.9859717106 | BR18: 0.9862308009 | BS18: 0.9864859073 | BT18: 0.9867360317 | BU18: 0.9869816715 | BV18: 0.9872223263 | BW18: 0.987459494 | BX18: 0.9876911763 | BY18: 0.9879188708 | BZ18: 0.9881425772 | CA18: 0.9883622945 | CB18: 0.9885775228 | CC18: 0.9887892617 | CD18: 0.9889965108 | CE18: 0.9892002686 | CF18: 0.9894000361 | CG18: 0.9895963114 | CH18: 0.989789094 | CI18: 0.9899778854 | CJ18: 0.9901631834 | CK18: 0.9903454887 | CL18: 0.9905243 | CM18: 0.9906996204 | CN18: 0.990871944 | CO18: 0.991041274 | CP18: 0.9912066116 | CQ18: 0.9913694526 | CR18: 0.9915292997 | CS18: 0.991686148 | CT18: 0.9918400069 | CU18: 0.9919908664 | CV18: 0.9921392335 | CW18: 0.9922846007 | CX18: 0.9924274754
U19: 15 | V19: 75 | W19: =VAACF($C$73,$C$78,$AY22:$AY$47) -> 15.87381518 | X19: =VAACF($C$73,$C$79,$AY22:$AY$47) -> 13.65721537 | AY19: 0.9885580244 | AZ19: 72 | BA19: 0.9791211653 | BB19: 0.9795244107 | BC19: 0.9799193219 | BD19: 0.9803059419 | BE19: 0.9806853269 | BF19: 0.9810575143 | BG19: 0.9814215274 | BH19: 0.9817793934 | BI19: 0.9821296372 | BJ19: 0.9824737609 | BK19: 0.982810298 | BL19: 0.983140758 | BM19: 0.9834646502 | BN19: 0.9837819853 | BO19: 0.9840937654 | BP19: 0.9843990062 | BQ19: 0.9846987078 | BR19: 0.9849923751 | BS19: 0.9852810173 | BT19: 0.9855636369 | BU19: 0.9858402489 | BV19: 0.9861123316 | BW19: 0.9863789157 | BX19: 0.9866399865 | BY19: 0.9868965486 | BZ19: 0.9871481134 | CA19: 0.9873946749 | CB19: 0.9876362362 | CC19: 0.9878733076 | CD19: 0.9881058754 | CE19: 0.9883344418 | CF19: 0.9885580244 | CG19: 0.9887776094 | CH19: 0.9889927063 | CI19: 0.9892038089 | CJ19: 0.9894104265 | CK19: 0.9896135518 | CL19: 0.9898126872 | CM19: 0.9900083328 | CN19: 0.9901999911 | CO19: 0.9903876689 | CP19: 0.9905718543 | CQ19: 0.9907525541 | CR19: 0.9909302619 | CS19: 0.9911034946 | CT19: 0.9912742352 | CU19: 0.9914414885 | CV19: 0.9916057579 | CW19: 0.9917665416 | CX19: 0.9919243427
B20: Importe que tiene previsto ahorrar anualmente | C20: 0 | D20: =IFERROR(IF(Ahorro_máximo_anual=0,"",ROUND(Ahorro_máximo_anual/Ingresos,3)*100&"% "&"salario bruto"),"") ->  | Q20: FACTOR DE SOSTENIBILIDAD | U20: 16 | V20: 76 | W20: =VAACF($C$73,$C$78,$AY23:$AY$47) -> 15.04511191 | X20: =VAACF($C$73,$C$79,$AY23:$AY$47) -> 13.02894425 | AY20: 0.9873386733 | AZ20: 73 | BA20: 0.97681449 | BB20: 0.9772604714 | BC20: 0.9776979317 | BD20: 0.9781278018 | BE20: 0.9785490402 | BF20: 0.9789625834 | BG20: 0.9793683929 | BH20: 0.9797664536 | BI20: 0.9801567199 | BJ20: 0.980540682 | BK20: 0.9809163122 | BL20: 0.9812850897 | BM20: 0.9816465051 | BN20: 0.9820010389 | BO20: 0.9823491883 | BP20: 0.9826904331 | BQ20: 0.9830247777 | BR20: 0.9833532033 | BS20: 0.983675702 | BT20: 0.9839912758 | BU20: 0.9843008958 | BV20: 0.9846050913 | BW20: 0.9849028262 | BX20: 0.9851951128 | BY20: 0.9854819464 | BZ20: 0.9857628142 | CA20: 0.9860382206 | CB20: 0.9863086584 | CC20: 0.9865736163 | CD20: 0.9868336106 | CE20: 0.9870891349 | CF20: 0.9873386733 | CG20: 0.9875842338 | CH20: 0.9878248088 | CI20: 0.988060406 | CJ20: 0.9882915108 | CK20: 0.9885186292 | CL20: 0.9887407633 | CM20: 0.9889594053 | CN20: 0.9891735573 | CO20: 0.9893827104 | CP20: 0.9895883758 | CQ20: 0.9897905436 | CR20: 0.9899887224 | CS20: 0.9901823953 | CT20: 0.9903725752 | CU20: 0.9905592608 | CV20: 0.9907424431 | CW20: 0.990922129 | CX20: 0.9910978106
B21: Incremento previsto del ahorro anual | C21: 0 | Q21: Año | R21: Factor | U21: 17 | V21: 77 | W21: =VAACF($C$73,$C$78,$AY24:$AY$47) -> 14.23695096 | X21: =VAACF($C$73,$C$79,$AY24:$AY$47) -> 12.40862868 | AA21: TASA DE SUSTITUCIÓN ETAPA TRANSICIÓN Y FINAL | AY21: 0.9862929823 | AZ21: 74 | BA21: 0.9746993577 | BB21: 0.975197358 | BC21: 0.9756852324 | BD21: 0.9761635876 | BE21: 0.9766314866 | BF21: 0.9770900094 | BG21: 0.9775401849 | BH21: 0.9779805741 | BI21: 0.9784117212 | BJ21: 0.9788356299 | BK21: 0.9792498493 | BL21: 0.9796563928 | BM21: 0.9800547755 | BN21: 0.9804450324 | BO21: 0.9808276682 | BP21: 0.9812031863 | BQ21: 0.9815706056 | BR21: 0.9819309474 | BS21: 0.9822847108 | BT21: 0.9826308964 | BU21: 0.9829705362 | BV21: 0.9833036083 | BW21: 0.9836301344 | BX21: 0.9839501208 | BY21: 0.9842635733 | BZ21: 0.9845709872 | CA21: 0.9848723677 | CB21: 0.9851677325 | CC21: 0.9854580658 | CD21: 0.9857418884 | CE21: 0.9860206871 | CF21: 0.9862929823 | CG21: 0.9865612533 | CH21: 0.9868235292 | CI21: 0.9870807821 | CJ21: 0.987333038 | CK21: 0.9875802991 | CL21: 0.987822545 | CM21: 0.9880607929 | CN21: 0.9882935503 | CO21: 0.988521801 | CP21: 0.9887460485 | CQ21: 0.9889658137 | CR21: 0.9891810775 | CS21: 0.9893923428 | CT21: 0.98959912 | CU21: 0.9898023929 | CV21: 0.9900011899 | CW21: 0.990196485 | CX21: 0.9903877883
B22: Ahorro acumulado actual en productos para la jubilación | C22: 0 | Q22: 2018 | R22: 1 | U22: 18 | V22: 78 | W22: =VAACF($C$73,$C$78,$AY25:$AY$47) -> 13.4464483 | X22: =VAACF($C$73,$C$79,$AY25:$AY$47) -> 11.79408608 | AY22: 0.9848331082 | AZ22: 75 | BA22: 0.9718914181 | BB22: 0.9724531076 | BC22: 0.9730020653 | BD22: 0.9735395212 | BE22: 0.9740652058 | BF22: 0.9745792928 | BG22: 0.9750834301 | BH22: 0.9755767134 | BI22: 0.9760592438 | BJ22: 0.9765326427 | BK22: 0.9769954497 | BL22: 0.9774492325 | BM22: 0.977894047 | BN22: 0.9783294316 | BO22: 0.9787559413 | BP22: 0.9791741261 | BQ22: 0.979583989 | BR22: 0.9799850823 | BS22: 0.9803784239 | BT22: 0.9807640392 | BU22: 0.9811419193 | BV22: 0.9815121491 | BW22: 0.9818751945 | BX22: 0.9822310728 | BY22: 0.9825793221 | BZ22: 0.9829209457 | CA22: 0.9832559574 | CB22: 0.9835838597 | CC22: 0.9839061623 | CD22: 0.9842213783 | CE22: 0.9845305377 | CF22: 0.9848331082 | CG22: 0.9851306277 | CH22: 0.9854210979 | CI22: 0.9857070103 | CJ22: 0.9859868756 | CK22: 0.9862607007 | CL22: 0.9865295109 | CM22: 0.9867932798 | CN22: 0.9870515039 | CO22: 0.98730473 | CP22: 0.9875534401 | CQ22: 0.9877966205 | CR22: 0.9880348174 | CS22: 0.9882689885 | CT22: 0.9884981521 | CU22: 0.9887233298 | CV22: 0.9889434753 | CW22: 0.9891596421 | CX22: 0.989371801
B23: Perfil de riesgo inversor | Q23: 2019 | R23: 0.9953 | U23: 19 | V23: 79 | W23: =VAACF($C$73,$C$78,$AY26:$AY$47) -> 12.67473444 | X23: =VAACF($C$73,$C$79,$AY26:$AY$47) -> 11.1866077 | AY23: 0.9828871878 | AZ23: 76 | BA23: 0.9686991748 | BB23: 0.9693024444 | BC23: 0.9698938219 | BD23: 0.9704743271 | BE23: 0.9710434296 | BF23: 0.971601601 | BG23: 0.9721493509 | BH23: 0.97268619 | BI23: 0.9732130759 | BJ23: 0.9737295209 | BK23: 0.9742360016 | BL23: 0.9747330336 | BM23: 0.9752206129 | BN23: 0.9756987363 | BO23: 0.9761674008 | BP23: 0.9766270845 | BQ23: 0.9770783054 | BR23: 0.9775200597 | BS23: 0.9779538276 | BT23: 0.9783791265 | BU23: 0.9787964761 | BV23: 0.9792053124 | BW23: 0.9796066766 | BX23: 0.9800005675 | BY23: 0.9803864619 | BZ23: 0.9807648803 | CA23: 0.9811358216 | CB23: 0.9814997649 | CC23: 0.9818572312 | CD23: 0.9822072174 | CE23: 0.9825506824 | CF23: 0.9828871878 | CG23: 0.9832176926 | CH23: 0.9835411937 | CI23: 0.9838587355 | CJ23: 0.9841707542 | CK23: 0.9844758099 | CL23: 0.9847753411 | CM23: 0.9850693904 | CN23: 0.9853579572 | CO23: 0.985640518 | CP23: 0.9859175953 | CQ23: 0.9861896682 | CR23: 0.9864557335 | CS23: 0.9867173167 | CT23: 0.9869734146 | CU23: 0.9872249856 | CV23: 0.987471594 | CW23: 0.9877136747 | CX23: 0.9879507922
Q24: 2020 | R24: 0.9907 | U24: 20 | V24: 80 | W24: =VAACF($C$73,$C$78,$AY27:$AY$47) -> 11.9200919 | X24: =VAACF($C$73,$C$79,$AY27:$AY$47) -> 10.58497599 | AF24: Año de jubilación según datos introducidos por el usuario | AG24: =YEAR(AC65) -> 2047 | AY24: 0.9809394539 | AZ24: 77 | BA24: 0.9653405306 | BB24: 0.9660015481 | BC24: 0.9666499116 | BD24: 0.9672860607 | BE24: 0.9679099599 | BF24: 0.9685220974 | BG24: 0.9691234157 | BH24: 0.96971241 | BI24: 0.9702905818 | BJ24: 0.9708578813 | BK24: 0.9714143305 | BL24: 0.9719608839 | BM24: 0.9724965659 | BN24: 0.9730218505 | BO24: 0.9735372121 | BP24: 0.9740426799 | BQ24: 0.9745392127 | BR24: 0.9750253204 | BS24: 0.975503001 | BT24: 0.975971248 | BU24: 0.9764300569 | BV24: 0.976880908 | BW24: 0.9773228325 | BX24: 0.9777563095 | BY24: 0.9781818183 | BZ24: 0.9785988734 | CA24: 0.9790079544 | CB24: 0.9794090959 | CC24: 0.9798032605 | CD24: 0.9801889612 | CE24: 0.9805682004 | CF24: 0.9809394539 | CG24: 0.9813042422 | CH24: 0.9816620434 | CI24: 0.9820123735 | CJ24: 0.9823567535 | CK24: 0.9826936215 | CL24: 0.983025019 | CM24: 0.9833499421 | CN24: 0.9836683896 | CO24: 0.9839808426 | CP24: 0.9842873 | CQ24: 0.9845877986 | CR24: 0.9848822995 | CS24: 0.9851718045 | CT24: 0.9854553097 | CU24: 0.9857338553 | CV24: 0.9860063995 | CW24: 0.9862744649 | CX24: 0.9865370094
B25: DATOS PREVISTOS EN LA JUBILACIÓN | Q25: 2021 | R25: 0.9861 | AY25: 0.9786962645 | AZ25: 78 | BA25: 0.9611614112 | BB25: 0.9619069545 | BC25: 0.9626374721 | BD25: 0.9633544587 | BE25: 0.9640574337 | BF25: 0.9647468866 | BG25: 0.9654233679 | BH25: 0.9660868183 | BI25: 0.9667372704 | BJ25: 0.9673752423 | BK25: 0.9680011893 | BL25: 0.9686156604 | BM25: 0.9692176221 | BN25: 0.9698080772 | BO25: 0.9703870576 | BP25: 0.9709550168 | BQ25: 0.9715129894 | BR25: 0.9720589699 | BS25: 0.9725954488 | BT25: 0.9731214233 | BU25: 0.9736368931 | BV25: 0.9741428926 | BW25: 0.974638872 | BX25: 0.9751253486 | BY25: 0.9756023538 | BZ25: 0.9760708263 | CA25: 0.9765298267 | CB25: 0.9769798082 | CC25: 0.9774218053 | CD25: 0.9778547828 | CE25: 0.9782797751 | CF25: 0.9786962645 | CG25: 0.9791052537 | CH25: 0.9795067422 | CI25: 0.9798997267 | CJ25: 0.9802852099 | CK25: 0.9806636771 | CL25: 0.9810346743 | CM25: 0.9813986549 | CN25: 0.9817556185 | CO25: 0.9821055968 | CP25: 0.9824490752 | CQ25: 0.9827860213 | CR25: 0.9831159813 | CS25: 0.9834399581 | CT25: 0.9837579196 | CU25: 0.9840698654 | CV25: 0.9843753097 | CW25: 0.9846752556 | CX25: 0.984969217
Q26: 2022 | R26: 0.9815 | AF26: Edad jubilación según datos introducidos por el usuario | AG26: =C28+D28/12 -> 67 | AY26: 0.9763378352 | AZ26: 79 | BA26: 0.956709301 | BB26: 0.9575422039 | BC26: 0.9583592175 | BD26: 0.9591612893 | BE26: 0.9599478407 | BF26: 0.9607198178 | BG26: 0.9614761769 | BH26: 0.9622193651 | BI26: 0.9629478661 | BJ26: 0.9636621376 | BK26: 0.9643631849 | BL26: 0.9650509583 | BM26: 0.965724954 | BN26: 0.9663866414 | BO26: 0.9670350059 | BP26: 0.9676710636 | BQ26: 0.9682957742 | BR26: 0.9689076125 | BS26: 0.9695081123 | BT26: 0.9700967501 | BU26: 0.9706744902 | BV26: 0.9712408391 | BW26: 0.9717963044 | BX26: 0.9723408797 | BY26: 0.9728750176 | BZ26: 0.9733992831 | CA26: 0.9739131009 | CB26: 0.9744170087 | CC26: 0.9749114886 | CD26: 0.9753960499 | CE26: 0.9758716622 | CF26: 0.9763378352 | CG26: 0.9767950799 | CH26: 0.9772438799 | CI26: 0.9776837181 | CJ26: 0.9781146187 | CK26: 0.9785380678 | CL26: 0.978952547 | CM26: 0.9793595698 | CN26: 0.9797586466 | CO26: 0.9801497484 | CP26: 0.9805333874 | CQ26: 0.9809105635 | CR26: 0.9812792711 | CS26: 0.9816409981 | CT26: 0.9819957693 | CU26: 0.9823445586 | CV26: 0.9826858747 | CW26: 0.9830207183 | CX26: 0.9833485736
C27: Años | D27: Meses | Q27: 2023 | R27: 0.9769 | AF27: Años enteros de prolongación de la vida laboral para el cálculo de los incentivos | AG27: =IF(AD48=2,AD54,0) -> 0 | AY27: 0.9735982338 | AZ27: 80 | BA27: 0.9515695144 | BB27: 0.9525058082 | BC27: 0.9534237815 | BD27: 0.9543248047 | BE27: 0.9552083238 | BF27: 0.9560752825 | BG27: 0.9569251193 | BH27: 0.957759338 | BI27: 0.9585773617 | BJ27: 0.9593796757 | BK27: 0.9601667411 | BL27: 0.9609385634 | BM27: 0.9616950951 | BN27: 0.9624378341 | BO27: 0.9631657636 | BP27: 0.9638793567 | BQ27: 0.9645801159 | BR27: 0.9652670284 | BS27: 0.9659405712 | BT27: 0.9666007348 | BU27: 0.9672485377 | BV27: 0.967883946 | BW27: 0.9685069524 | BX27: 0.96911755 | BY27: 0.9697167591 | BZ27: 0.9703040356 | CA27: 0.9708804004 | CB27: 0.9714453353 | CC27: 0.9719998374 | CD27: 0.9725429002 | CE27: 0.9730755452 | CF27: 0.9735982338 | CG27: 0.9741104732 | CH27: 0.9746132622 | CI27: 0.9751061077 | CJ27: 0.9755889835 | CK27: 0.976062912 | CL27: 0.9765273777 | CM27: 0.9769833804 | CN27: 0.9774304052 | CO27: 0.9778684721 | CP27: 0.9782980687 | CQ27: 0.9787197053 | CR27: 0.9791328456 | CS27: 0.9795380219 | CT27: 0.9799352105 | CU27: 0.9803249432 | CV27: 0.9807071756 | CW27: 0.9810819276 | CX27: 0.9814491974
B28: Edad de Jubilación prevista | C28: =MAX(INT(AC73),INT(R9/12)) -> 67 | D28: =MOD(MAX(AC73*12,R9),12) -> 0 | Q28: 2024 | R28: 0.9729 | AF28: Trimestres enteros de anticipación para el cálculo del coeficiente reductor | AG28: =IF(AD48=1,AD52,0) -> 0 | AY28: 0.9704419208 | AZ28: 81 | BA28: 0.9456992859 | BB28: 0.9467593157 | BC28: 0.9477968445 | BD28: 0.9488140594 | BE28: 0.9498105736 | BF28: 0.9507879712 | BG28: 0.951745371 | BH28: 0.9526842938 | BI28: 0.9536043464 | BJ28: 0.9545060627 | BK28: 0.9553904829 | BL28: 0.956257615 | BM28: 0.9571070373 | BN28: 0.9579407425 | BO28: 0.9587572751 | BP28: 0.9595581378 | BQ28: 0.9603433786 | BR28: 0.961113471 | BS28: 0.9618684587 | BT28: 0.9626083557 | BU28: 0.9633341437 | BV28: 0.9640458617 | BW28: 0.9647435199 | BX28: 0.9654276125 | BY28: 0.9660981483 | BZ28: 0.9667556466 | CA28: 0.9674005993 | CB28: 0.9680330135 | CC28: 0.9686534059 | CD28: 0.9692612716 | CE28: 0.9698571012 | CF28: 0.9704419208 | CG28: 0.9710147389 | CH28: 0.9715770409 | CI28: 0.9721283208 | CJ28: 0.9726686065 | CK28: 0.9731988732 | CL28: 0.9737181523 | CM28: 0.9742279284 | CN28: 0.9747277182 | CO28: 0.9752175008 | CP28: 0.9756982744 | CQ28: 0.9761690691 | CR28: 0.9766313689 | CS28: 0.9770841801 | CT28: 0.9775285003 | CU28: 0.9779638223 | CV28: 0.978391166 | CW28: 0.9788100238 | CX28: 0.979220884
B29: Edad mínima de jubilación | C29: =IF(OR(Año=0,AND(Años_cotizados=0,Meses_cotizados=0)=TRUE)=TRUE,"",IFERROR(INT(AC73),"")) ->  | D29: =IF(OR(Año=0,AND(Años_cotizados=0,Meses_cotizados=0)=TRUE)=TRUE,"",IFERROR((AC73-C29)*12,"")) ->  | Q29: 2025 | R29: 0.969 | V29: COMUNIDAD AUTÓNOMA | AY29: 0.9659063998 | AZ29: 82 | BA29: 0.9383326878 | BB29: 0.9394978947 | BC29: 0.9406408225 | BD29: 0.9417623745 | BE29: 0.942862957 | BF29: 0.9439440234 | BG29: 0.9450035152 | BH29: 0.9460443929 | BI29: 0.947065585 | BJ29: 0.9480670877 | BK29: 0.9490498738 | BL29: 0.9500149197 | BM29: 0.9509606838 | BN29: 0.9518896668 | BO29: 0.9528003319 | BP29: 0.9536946685 | BQ29: 0.954571171 | BR29: 0.9554323196 | BS29: 0.9562766109 | BT29: 0.9571045213 | BU29: 0.9579175586 | BV29: 0.9587151981 | BW29: 0.9594974309 | BX29: 0.9602652521 | BY29: 0.9610181654 | BZ29: 0.9617571411 | CA29: 0.9624821985 | CB29: 0.9631933307 | CC29: 0.9638910212 | CD29: 0.9645757539 | CE29: 0.9652475485 | CF29: 0.9659063998 | CG29: 0.9665527688 | CH29: 0.9671866993 | CI29: 0.9678091672 | CJ29: 0.9684196547 | CK29: 0.9690186955 | CL29: 0.9696062391 | CM29: 0.9701828195 | CN29: 0.9707479194 | CO29: 0.9713025403 | CP29: 0.9718476839 | CQ29: 0.9723813382 | CR29: 0.9729055099 | CS29: 0.9734191916 | CT29: 0.9739233857 | CU29: 0.9744180899 | CV29: 0.9749037936 | CW29: 0.9753795114 | CX29: 0.9758467378
B30: Edad legal de jubilación | C30: =IF(OR(Año=0,AND(Años_cotizados=0,Meses_cotizados=0)=TRUE)=TRUE,"",IFERROR(INT(AC74),"")) ->  | D30: =IF(OR(Año=0,AND(Años_cotizados=0,Meses_cotizados=0)=TRUE)=TRUE,"",IFERROR((AC74-C30)*12,"")) ->  | Q30: 2026 | R30: 0.9651 | AF30: Años cotizados según datos introducidos por el usuario | AG30: =AC66 -> 28.91666667 | AY30: 0.9609699285 | AZ30: 83 | BA30: 0.9310261998 | BB30: 0.9322772398 | BC30: 0.9335054935 | BD30: 0.9347122762 | BE30: 0.9358974808 | BF30: 0.9370624815 | BG30: 0.9382056719 | BH30: 0.9393290034 | BI30: 0.9404324097 | BJ30: 0.9415158082 | BK30: 0.9425796639 | BL30: 0.9436244478 | BM30: 0.9446500974 | BN30: 0.9456576059 | BO30: 0.946646431 | BP30: 0.9476180603 | BQ30: 0.9485719352 | BR30: 0.9495085923 | BS30: 0.9504284567 | BT30: 0.9513310437 | BU30: 0.9522173384 | BV30: 0.9530883072 | BW30: 0.9539429556 | BX30: 0.9547822727 | BY30: 0.9556062272 | BZ30: 0.9564153388 | CA30: 0.9572100698 | CB30: 0.9579894277 | CC30: 0.9587553901 | CD30: 0.9595074751 | CE30: 0.9602456569 | CF30: 0.9609699285 | CG30: 0.9616817959 | CH30: 0.9623802332 | CI30: 0.963066254 | CJ30: 0.9637398526 | CK30: 0.9644010077 | CL30: 0.9650502394 | CM30: 0.9656875271 | CN30: 0.9663128666 | CO30: 0.9669272568 | CP30: 0.967530708 | CQ30: 0.9681226933 | CR30: 0.9687042263 | CS30: 0.969274795 | CT30: 0.9698353996 | CU30: 0.9703855417 | CV30: 0.9709262216 | CW30: 0.9714564202 | CX30: 0.9719766551
Q31: 2027 | R31: 0.9612 | U31: 1 | V31: Andalucía | AF31: Meses cotizados por encima 15 años para el cálculo de la tasa de sustitución base | AG31: =(AG30-15)*12 -> 167 | AY31: 0.9554661327 | AZ31: 84 | BA31: 0.9233324043 | BB31: 0.9246732107 | BC31: 0.9259886786 | BD31: 0.9272805985 | BE31: 0.928548679 | BF31: 0.9297941283 | BG31: 0.9310165816 | BH31: 0.9322176432 | BI31: 0.933396935 | BJ31: 0.9345555422 | BK31: 0.9356935418 | BL31: 0.936811 | BM31: 0.9379089709 | BN31: 0.9389875052 | BO31: 0.9400466479 | BP31: 0.9410874345 | BQ31: 0.9421104105 | BR31: 0.9431145872 | BS31: 0.9441020088 | BT31: 0.9450711955 | BU31: 0.9460236522 | BV31: 0.9469599324 | BW31: 0.947879523 | BX31: 0.9487829511 | BY31: 0.9496712277 | BZ31: 0.9505428858 | CA31: 0.9514004156 | CB31: 0.9522418401 | CC31: 0.9530696678 | CD31: 0.9538824073 | CE31: 0.9546815508 | CF31: 0.9554661327 | CG31: 0.9562371558 | CH31: 0.9569951158 | CI31: 0.9577400204 | CJ31: 0.9584713882 | CK31: 0.9591907084 | CL31: 0.9598969928 | CM31: 0.960590753 | CN31: 0.9612729718 | CO31: 0.961943182 | CP31: 0.9626018609 | CQ31: 0.9632485399 | CR31: 0.9638846908 | CS31: 0.9645093389 | CT31: 0.9651239716 | CU31: 0.9657271088 | CV31: 0.9663202374 | CW31: 0.9669028708 | CX31: 0.9674749979
B32: Pensión pública de jubilación | E32: =IF($R$10=TRUE,"Importe de la pensión","") ->  | Q32: 2028 | R32: 0.9573 | U32: 2 | V32: Aragón | AY32: 0.9479824528 | AZ32: 85 | BA32: 0.9140537188 | BB32: 0.9154339902 | BC32: 0.9167924808 | BD32: 0.91812968 | BE32: 0.9194450829 | BF32: 0.9207391528 | BG32: 0.9220123573 | BH32: 0.9232657161 | BI32: 0.9244987015 | BJ32: 0.9257118197 | BK32: 0.9269055455 | BL32: 0.9280803558 | BM32: 0.929235791 | BN32: 0.9303728134 | BO32: 0.9314919024 | BP32: 0.9325925987 | BQ32: 0.9336758673 | BR32: 0.9347412188 | BS32: 0.9357901344 | BT32: 0.9368216113 | BU32: 0.9378366739 | BV32: 0.9388352909 | BW32: 0.9398184597 | BX32: 0.9407852047 | BY32: 0.9417370092 | BZ32: 0.9426728449 | CA32: 0.9435942485 | CB32: 0.9445001922 | CC32: 0.9453921865 | CD32: 0.9462692293 | CE32: 0.9471333187 | CF32: 0.9479824528 | CG32: 0.9488181179 | CH32: 0.949640336 | CI32: 0.9504495937 | CJ32: 0.9512453778 | CK32: 0.9520287098 | CL32: 0.9527995658 | CM32: 0.9535574555 | CN32: 0.9543038886 | CO32: 0.955037842 | CP32: 0.9557603359 | CQ32: 0.9564708377 | CR32: 0.9571698979 | CS32: 0.9578579643 | CT32: 0.9585350761 | CU32: 0.9592011924 | CV32: 0.9598568421 | CW32: 0.960501514 | CX32: 0.9611357169
D33: 2561.92 | Q33: 2029 | R33: 0.9539 | U33: 3 | V33: Asturias (Principado de) | AY33: 0.9403964812 | AZ33: 86 | BA33: 0.9041060707 | BB33: 0.9056015927 | BC33: 0.9070681229 | BD33: 0.9085077219 | BE33: 0.9099207624 | BF33: 0.9113080139 | BG33: 0.9126715327 | BH33: 0.9140118156 | BI33: 0.9153288113 | BJ33: 0.9166233488 | BK33: 0.9178967224 | BL33: 0.9191492439 | BM33: 0.9203805846 | BN33: 0.9215924504 | BO33: 0.9227850668 | BP33: 0.9239575638 | BQ33: 0.9251115849 | BR33: 0.9262472133 | BS33: 0.9273646546 | BT33: 0.9284649077 | BU33: 0.9295471285 | BV33: 0.9306128565 | BW33: 0.9316617453 | BX33: 0.9326937789 | BY33: 0.9337100507 | BZ33: 0.9347106218 | CA33: 0.9356960177 | CB33: 0.9366653522 | CC33: 0.9376201249 | CD33: 0.9385598683 | CE33: 0.9394856488 | CF33: 0.9403964812 | CG33: 0.9412938952 | CH33: 0.9421769438 | CI33: 0.94304664 | CJ33: 0.9439030137 | CK33: 0.9447465622 | CL33: 0.9455768848 | CM33: 0.9463944338 | CN33: 0.9471997435 | CO33: 0.9479928362 | CP33: 0.9487732639 | CQ33: 0.9495424948 | CR33: 0.9502995276 | CS33: 0.9510454413 | CT33: 0.9517792328 | CU33: 0.9525028761 | CV33: 0.9532149385 | CW33: 0.9539163728 | CX33: 0.9546067239
Q34: 2030 | R34: 0.9505 | U34: 4 | V34: Balears (Illes) | AA34: Año | AB34: Años BR | AC34: Edad normal | AD34: Años jub. 65 | AE34: Límite 1 | AF34: % | AG34: Límite 2 | AH34: % | AY34: 0.9280898681 | AZ34: 87 | BA34: 0.8908491867 | BB34: 0.8922808088 | BC34: 0.8936973897 | BD34: 0.8950995918 | BE34: 0.8964867227 | BF34: 0.8978576912 | BG34: 0.8992135661 | BH34: 0.9005530064 | BI34: 0.9018765869 | BJ34: 0.9031840802 | BK34: 0.9044757753 | BL34: 0.9057509343 | BM34: 0.9070103823 | BN34: 0.9082549671 | BO34: 0.9094830611 | BP34: 0.9106954949 | BQ34: 0.9118922068 | BR34: 0.9130741042 | BS34: 0.9142405151 | BT34: 0.9153919885 | BU34: 0.9165283474 | BV34: 0.9176505838 | BW34: 0.9187570947 | BX34: 0.9198498425 | BY34: 0.9209282943 | BZ34: 0.9219924008 | CA34: 0.9230431275 | CB34: 0.9240793718 | CC34: 0.9251021552 | CD34: 0.9261114412 | CE34: 0.9271071957 | CF34: 0.9280898681 | CG34: 0.9290599594 | CH34: 0.9300169112 | CI34: 0.9309607452 | CJ34: 0.931892401 | CK34: 0.9328123859 | CL34: 0.9337191346 | CM34: 0.9346141696 | CN34: 0.9354969881 | CO34: 0.9363685375 | CP34: 0.9372277865 | CQ34: 0.9380757791 | CR34: 0.9389129826 | CS34: 0.9397383677 | CT34: 0.9405528877 | CU34: 0.9413566215 | CV34: 0.9421494633 | CW34: 0.9429314926 | CX34: 0.9437031358
Q35: 2031 | R35: 0.9472 | U35: 5 | V35: Canarias | AA35: =AG24 -> 2047 | AB35: =VLOOKUP($AG$24,Transitorio,2) -> 25 | AC35: =VLOOKUP($AG$24,Transitorio,3) -> 67 | AD35: =VLOOKUP($AG$24,Transitorio,4) -> 38.5 | AE35: =VLOOKUP($AG$24,Transitorio,5) -> 248 | AF35: =VLOOKUP($AG$24,Transitorio,6) -> 0.0019 | AG35: =VLOOKUP($AG$24,Transitorio,7) -> 264 | AH35: =VLOOKUP($AG$24,Transitorio,8) -> 0.0018 | AY35: 0.917303333 | AZ35: 88 | BA35: 0.8782182244 | BB35: 0.8797180975 | BC35: 0.8812009291 | BD35: 0.8826673701 | BE35: 0.8841171419 | BF35: 0.885550018 | BG35: 0.8869668129 | BH35: 0.8883658483 | BI35: 0.8897485578 | BJ35: 0.8911152664 | BK35: 0.8924649183 | BL35: 0.8937983902 | BM35: 0.8951161307 | BN35: 0.8964181148 | BO35: 0.8977037256 | BP35: 0.8989739533 | BQ35: 0.9002287145 | BR35: 0.9014680067 | BS35: 0.9026923119 | BT35: 0.9039015236 | BU35: 0.9050956843 | BV35: 0.9062757327 | BW35: 0.9074411253 | BX35: 0.9085919076 | BY35: 0.9097289923 | BZ35: 0.9108518757 | CA35: 0.9119605721 | CB35: 0.9130560345 | CC35: 0.9141377615 | CD35: 0.9152062241 | CE35: 0.9162614087 | CF35: 0.917303333 | CG35: 0.9183329575 | CH35: 0.919349784 | CI35: 0.9203532851 | CJ35: 0.9213449709 | CK35: 0.9223243438 | CL35: 0.9232918541 | CM35: 0.9242470332 | CN35: 0.9251898451 | CO35: 0.9261218019 | CP35: 0.9270418918 | CQ35: 0.927950597 | CR35: 0.9288479363 | CS35: 0.9297338776 | CT35: 0.9306094445 | CU35: 0.9314736015 | CV35: 0.9323278624 | CW35: 0.9331702121 | CX35: 0.9340031458
Q36: 2032 | R36: 0.9439 | U36: 6 | V36: Cantabria | AY36: 0.9063145219 | AZ36: 89 | BA36: 0.8655376715 | BB36: 0.8670947719 | BC36: 0.868633319 | BD36: 0.8701547332 | BE36: 0.8716589713 | BF36: 0.8731455208 | BG36: 0.8746153506 | BH36: 0.8760683935 | BI36: 0.8775036726 | BJ36: 0.878923647 | BK36: 0.8803263036 | BL36: 0.8817131478 | BM36: 0.8830841674 | BN36: 0.8844393139 | BO36: 0.8857786165 | BP36: 0.8871020663 | BQ36: 0.8884106549 | BR36: 0.8897043402 | BS36: 0.8909821524 | BT36: 0.8922460843 | BU36: 0.8934946147 | BV36: 0.8947292549 | BW36: 0.89595 | BX36: 0.8971558151 | BY36: 0.8983477583 | BZ36: 0.8995262789 | CA36: 0.9006908599 | CB36: 0.9018420422 | CC36: 0.9029797939 | CD36: 0.9041046263 | CE36: 0.90521605 | CF36: 0.9063145219 | CG36: 0.9074010667 | CH36: 0.9084741947 | CI36: 0.9095353654 | CJ36: 0.9105841146 | CK36: 0.9116204156 | CL36: 0.9126452903 | CM36: 0.9136577131 | CN36: 0.914658194 | CO36: 0.9156477314 | CP36: 0.9166258128 | CQ36: 0.9175924578 | CR36: 0.918547644 | CS36: 0.91949139 | CT36: 0.9204246748 | CU36: 0.9213470066 | CV36: 0.9222593846 | CW36: 0.9231602977 | CX36: 0.924051272
B37: Nivel de gastos iniciales en la jubilación (€ actuales al mes) | C37: =SUM(C40:C43) -> 0 | Q37: 2033 | R37: 0.9406 | U37: 7 | V37: Castilla y León | AY37: 0.8938578708 | AZ37: 90 | BA37: 0.8510564366 | BB37: 0.8526549264 | BC37: 0.8542386655 | BD37: 0.8558085814 | BE37: 0.8573637186 | BF37: 0.8589041302 | BG37: 0.8604295395 | BH37: 0.8619406821 | BI37: 0.8634358127 | BJ37: 0.8649167804 | BK37: 0.866382382 | BL37: 0.8678329937 | BM37: 0.8692689747 | BN37: 0.8706902485 | BO37: 0.8720966846 | BP37: 0.8734881972 | BQ37: 0.8748652258 | BR37: 0.8762282162 | BS37: 0.8775765603 | BT37: 0.8789112333 | BU37: 0.8802311795 | BV37: 0.8815373542 | BW37: 0.8828297136 | BX37: 0.884108707 | BY37: 0.885373294 | BZ37: 0.8866244679 | CA37: 0.8878631779 | CB37: 0.8890878991 | CC37: 0.8903001003 | CD37: 0.8914987715 | CE37: 0.8926843608 | CF37: 0.8938578708 | CG37: 0.8950187865 | CH37: 0.8961665581 | CI37: 0.8973022067 | CJ37: 0.8984256806 | CK37: 0.8995374749 | CL37: 0.9006365834 | CM37: 0.9017239814 | CN37: 0.902799655 | CO37: 0.903864101 | CP37: 0.904916809 | CQ37: 0.9059577538 | CR37: 0.9069879304 | CS37: 0.9080063217 | CT37: 0.909013934 | CU37: 0.9100107466 | CV37: 0.9109972578 | CW37: 0.9119724514 | CX37: 0.9129373167
Q38: 2034 | R38: 0.9377 | U38: 8 | V38: Castilla-la Mancha | AD38: Coef. Reductor | AF38: Años cotizados | AG38: Incentivo | AY38: 0.883840592 | AZ38: 91 | BA38: 0.8366476135 | BB38: 0.8384614481 | BC38: 0.8402500514 | BD38: 0.8420156807 | BE38: 0.8437584478 | BF38: 0.8454799056 | BG38: 0.8471799534 | BH38: 0.8488594595 | BI38: 0.8505181982 | BJ38: 0.8521578856 | BK38: 0.8537777872 | BL38: 0.8553785615 | BM38: 0.8569608848 | BN38: 0.858524857 | BO38: 0.8600711178 | BP38: 0.8615997766 | BQ38: 0.8631104535 | BR38: 0.8646041895 | BS38: 0.8660810985 | BT38: 0.8675412498 | BU38: 0.8689851506 | BV38: 0.8704124148 | BW38: 0.8718235727 | BX38: 0.8732196624 | BY38: 0.8745997374 | BZ38: 0.875963838 | CA38: 0.8773139807 | CB38: 0.8786482199 | CC38: 0.8799685665 | CD38: 0.8812730701 | CE38: 0.8825637369 | CF38: 0.883840592 | CG38: 0.8851026691 | CH38: 0.8863509793 | CI38: 0.8875850367 | CJ38: 0.8888063564 | CK38: 0.8900139884 | CL38: 0.8912079053 | CM38: 0.8923891343 | CN38: 0.8935576898 | CO38: 0.8947131007 | CP38: 0.8958553606 | CQ38: 0.8969854716 | CR38: 0.8981034633 | CS38: 0.899208843 | CT38: 0.9003021074 | CU38: 0.9013837691 | CV38: 0.9024533506 | CW38: 0.9035113326 | CX38: 0.9045577526
Q39: 2035 | R39: 0.9349 | U39: 9 | V39: Cataluña | AC39: 0 | AD39: 0.01875 | AF39: 0 | AG39: 0.02 | AY39: 0.8717166806 | AZ39: 92 | BA39: 0.8207047126 | BB39: 0.8226123433 | BC39: 0.8245016695 | BD39: 0.8263737324 | BE39: 0.8282276733 | BF39: 0.830064116 | BG39: 0.8318818568 | BH39: 0.8336816187 | BI39: 0.8354632169 | BJ39: 0.8372275439 | BK39: 0.83897341 | BL39: 0.8407012205 | BM39: 0.8424113441 | BN39: 0.8441037366 | BO39: 0.8457792651 | BP39: 0.8474373793 | BQ39: 0.8490779656 | BR39: 0.8507015327 | BS39: 0.8523079793 | BT39: 0.8538972555 | BU39: 0.8554708377 | BV39: 0.8570271611 | BW39: 0.8585671875 | BX39: 0.8600914018 | BY39: 0.8615992494 | BZ39: 0.8630906992 | CA39: 0.8645672432 | CB39: 0.8660273327 | CC39: 0.8674729451 | CD39: 0.8689025366 | CE39: 0.8703171225 | CF39: 0.8717166806 | CG39: 0.8731011562 | CH39: 0.8744710487 | CI39: 0.8758263403 | CJ39: 0.8771675309 | CK39: 0.8784940557 | CL39: 0.8798064479 | CM39: 0.8811051781 | CN39: 0.8823897455 | CO39: 0.8836605945 | CP39: 0.8849177419 | CQ39: 0.8861616902 | CR39: 0.8873924003 | CS39: 0.8886098618 | CT39: 0.8898140899 | CU39: 0.8910055624 | CV39: 0.8921842452 | CW39: 0.8933506673 | CX39: 0.8945037921
B40: Vivienda | C40: 0 | Q40: 2036 | R40: 0.9321 | U40: 10 | V40: Comunitat Valenciana | AC40: 38.5 | AD40: 0.0175 | AF40: 25.01 | AG40: 0.0275 | AY40: 0.86029055 | AZ40: 93 | BA40: 0.8019699377 | BB40: 0.8041477414 | BC40: 0.8063070376 | BD40: 0.8084478243 | BE40: 0.8105682925 | BF40: 0.8126697917 | BG40: 0.8147502479 | BH40: 0.8168107351 | BI40: 0.8188513451 | BJ40: 0.8208712663 | BK40: 0.8228702095 | BL40: 0.8248488869 | BM40: 0.8268076029 | BN40: 0.8287451562 | BO40: 0.8306629007 | BP40: 0.8325601572 | BQ40: 0.8344377919 | BR40: 0.8362956439 | BS40: 0.8381331453 | BT40: 0.8399511646 | BU40: 0.841749636 | BV40: 0.8435289288 | BW40: 0.845288501 | BX40: 0.8470297465 | BY40: 0.8487516142 | BZ40: 0.8504545291 | CA40: 0.8521394398 | CB40: 0.8538057731 | CC40: 0.8554540149 | CD40: 0.8570840909 | CE40: 0.8586964489 | CF40: 0.86029055 | CG40: 0.8618673621 | CH40: 0.8634273421 | CI40: 0.864969459 | CJ40: 0.8664946706 | CK40: 0.868003457 | CL40: 0.8694952729 | CM40: 0.8709706007 | CN40: 0.8724293983 | CO40: 0.8738721626 | CP40: 0.8752993553 | CQ40: 0.8767099505 | CR40: 0.8781054367 | CS40: 0.8794852891 | CT40: 0.8808494773 | CU40: 0.8821979876 | CV40: 0.883532315 | CW40: 0.8848519312 | CX40: 0.8861563142
B41: Básicas | C41: 0 | Q41: 2037 | R41: 0.9293 | U41: 11 | V41: Extremadura | AC41: 41.5 | AD41: 0.01625 | AF41: 37.01 | AG41: 0.04 | AY41: 0.857377239 | AZ41: 94 | BA41: 0.7899678885 | BB41: 0.7926149606 | BC41: 0.7952219668 | BD41: 0.7977902794 | BE41: 0.8003218136 | BF41: 0.8028175301 | BG41: 0.805278529 | BH41: 0.8077059088 | BI41: 0.8101006724 | BJ41: 0.8124631741 | BK41: 0.8147937638 | BL41: 0.8170942553 | BM41: 0.8193644344 | BN41: 0.8216049543 | BO41: 0.8238160606 | BP41: 0.8259984032 | BQ41: 0.8281531304 | BR41: 0.8302804208 | BS41: 0.8323803197 | BT41: 0.8344534934 | BU41: 0.8364995279 | BV41: 0.8385204965 | BW41: 0.8405149791 | BX41: 0.8424850658 | BY41: 0.8444298021 | BZ41: 0.846350243 | CA41: 0.8482464756 | CB41: 0.8501195141 | CC41: 0.851967936 | CD41: 0.8537937415 | CE41: 0.8555969986 | CF41: 0.857377239 | CG41: 0.8591350052 | CH41: 0.8608713196 | CI41: 0.8625856884 | CJ41: 0.8642786669 | CK41: 0.8659507673 | CL41: 0.8676020156 | CM41: 0.8692324359 | CN41: 0.8708430404 | CO41: 0.872433349 | CP41: 0.8740043848 | CQ41: 0.8755551647 | CR41: 0.8770871967 | CS41: 0.8785999979 | CT41: 0.8800940846 | CU41: 0.8815694634 | CV41: 0.8830266563 | CW41: 0.8844661664 | CX41: 0.885887509
B42: Salud | C42: 0 | Q42: 2038 | R42: 0.9265 | U42: 12 | V42: Galicia | AC42: 44.5 | AD42: 0.015 | AY42: 0.8551202119 | AZ42: 95 | BA42: 0.7800172368 | BB42: 0.7830099142 | BC42: 0.7859536046 | BD42: 0.7888502853 | BE42: 0.7917028291 | BF42: 0.7945116519 | BG42: 0.7972786602 | BH42: 0.8000045498 | BI42: 0.8026908204 | BJ42: 0.805338498 | BK42: 0.8079480045 | BL42: 0.8105211505 | BM42: 0.8130568031 | BN42: 0.8155576729 | BO42: 0.8180230124 | BP42: 0.8204540222 | BQ42: 0.8228518778 | BR42: 0.8252162206 | BS42: 0.8275482511 | BT42: 0.82984804 | BU42: 0.8321157087 | BV42: 0.8343533414 | BW42: 0.8365595859 | BX42: 0.8387364471 | BY42: 0.8408835435 | BZ42: 0.8430014711 | CA42: 0.8450902423 | CB42: 0.8471514279 | CC42: 0.849184046 | CD42: 0.8511897103 | CE42: 0.8531684168 | CF42: 0.8551202119 | CG42: 0.857045607 | CH42: 0.8589446922 | CI42: 0.8608189582 | CJ42: 0.8626679229 | CK42: 0.8644916663 | CL42: 0.8662916269 | CM42: 0.8680664247 | CN42: 0.8698180114 | CO42: 0.8715464125 | CP42: 0.8732516524 | CQ42: 0.8749332825 | CR42: 0.8765932518 | CS42: 0.8782306374 | CT42: 0.8798459298 | CU42: 0.8814401319 | CV42: 0.8830127491 | CW42: 0.8845643099 | CX42: 0.8860948297
B43: Ocio | C43: 0 | Q43: 2039 | R43: 0.9241 | U43: 13 | V43: Madrid (Comunidad de) | AY43: 0.8453913021 | AZ43: 96 | BA43: 0.7608427346 | BB43: 0.7641152764 | BC43: 0.767352743 | BD43: 0.7705547707 | BE43: 0.7737198239 | BF43: 0.7768481157 | BG43: 0.7799390701 | BH43: 0.7829913429 | BI43: 0.7860061984 | BJ43: 0.788982992 | BK43: 0.7919221021 | BL43: 0.7948236453 | BM43: 0.7976870531 | BN43: 0.800514027 | BO43: 0.8033036859 | BP43: 0.8060562569 | BQ43: 0.8087729439 | BR43: 0.8114534935 | BS43: 0.8140981497 | BT43: 0.8167072361 | BU43: 0.8192810344 | BV43: 0.8218209121 | BW43: 0.8243256345 | BX43: 0.8267971285 | BY43: 0.8292351973 | BZ43: 0.8316392265 | CA43: 0.8340110689 | CB43: 0.8363501763 | CC43: 0.8386574029 | CD43: 0.8409331304 | CE43: 0.843177794 | CF43: 0.8453913021 | CG43: 0.8475745841 | CH43: 0.8497270277 | CI43: 0.8518505899 | CJ43: 0.8539447103 | CK43: 0.8560092778 | CL43: 0.8580458134 | CM43: 0.8600536461 | CN43: 0.8620338136 | CO43: 0.8639867482 | CP43: 0.8659123953 | CQ43: 0.8678106671 | CR43: 0.8696835885 | CS43: 0.871529566 | CT43: 0.8733500674 | CU43: 0.8751450828 | CV43: 0.8769150642 | CW43: 0.8786599718 | CX43: 0.880380758
Q44: 2040 | R44: 0.9217 | U44: 14 | V44: Murcia (Región de) | AY44: 0.8476676849 | AZ44: 97 | BA44: 0.7481951392 | BB44: 0.752326766 | BC44: 0.7563772178 | BD44: 0.7603499112 | BE44: 0.7642484915 | BF44: 0.7680758785 | BG44: 0.7718345708 | BH44: 0.7755261954 | BI44: 0.7791528717 | BJ44: 0.7827163999 | BK44: 0.7862186029 | BL44: 0.7896605156 | BM44: 0.7930442243 | BN44: 0.7963707507 | BO44: 0.7996414443 | BP44: 0.8028571477 | BQ44: 0.8060192551 | BR44: 0.8091285271 | BS44: 0.8121871435 | BT44: 0.8151944242 | BU44: 0.8181524991 | BV44: 0.8210616268 | BW44: 0.8239233768 | BX44: 0.8267379722 | BY44: 0.8295074772 | BZ44: 0.8322305793 | CA44: 0.8349103608 | CB44: 0.8375458994 | CC44: 0.840138341 | CD44: 0.8426892361 | CE44: 0.8451991446 | CF44: 0.8476676849 | CG44: 0.8500968588 | CH44: 0.8524858043 | CI44: 0.8548370282 | CJ44: 0.8571500819 | CK44: 0.8594260122 | CL44: 0.8616648779 | CM44: 0.8638677581 | CN44: 0.866035606 | CO44: 0.8681680396 | CP44: 0.8702660491 | CQ44: 0.8723306618 | CR44: 0.8743624293 | CS44: 0.8763608815 | CT44: 0.8783275471 | CU44: 0.8802629017 | CV44: 0.8821665399 | CW44: 0.8840399183 | CX44: 0.8858836067
Q45: 2041 | R45: 0.9193 | U45: 15 | V45: Navarra (Comunidad foral) | AY45: 0.8363890202 | AZ45: 98 | BA45: 0.7315741873 | BB45: 0.7355841323 | BC45: 0.7395712647 | BD45: 0.7435294942 | BE45: 0.7474544412 | BF45: 0.7513426435 | BG45: 0.7551905962 | BH45: 0.7589964721 | BI45: 0.7627583653 | BJ45: 0.7664753851 | BK45: 0.770146386 | BL45: 0.7737701018 | BM45: 0.777346923 | BN45: 0.7808759103 | BO45: 0.7843573614 | BP45: 0.7877906693 | BQ45: 0.7911758072 | BR45: 0.7945128884 | BS45: 0.7978031827 | BT45: 0.8010453607 | BU45: 0.8042408346 | BV45: 0.8073889388 | BW45: 0.8104911944 | BX45: 0.8135465236 | BY45: 0.8165575592 | BZ45: 0.8195222589 | CA45: 0.8224428142 | CB45: 0.8253188212 | CC45: 0.8281504209 | CD45: 0.8309393604 | CE45: 0.83368584 | CF45: 0.8363890202 | CG45: 0.8390517649 | CH45: 0.8416716965 | CI45: 0.8442517144 | CJ45: 0.8467921039 | CK45: 0.8492921045 | CL45: 0.8517536128 | CM45: 0.8541753643 | CN45: 0.8565603309 | CO45: 0.8589067459 | CP45: 0.8612160139 | CQ45: 0.8634895595 | CR45: 0.8657266884 | CS45: 0.8679283205 | CT45: 0.8700948354 | CU45: 0.8722271385 | CV45: 0.874324591 | CW45: 0.8763897129 | CX45: 0.8784213223
Q46: 2042 | R46: 0.9169 | U46: 16 | V46: País vasco | AA46: DATOS DEL INDIVIDUO Y TASA DE SUSTITUCIÓN CORRESPONDIENTE | AY46: 0.8483633461 | AZ46: 99 | BA46: 0.7284525976 | BB46: 0.7335962178 | BC46: 0.7386269648 | BD46: 0.7435512119 | BE46: 0.7483716713 | BF46: 0.7530939347 | BG46: 0.7577197828 | BH46: 0.7622530845 | BI46: 0.7666960882 | BJ46: 0.7710512835 | BK46: 0.7753215099 | BL46: 0.7795084596 | BM46: 0.7836142929 | BN46: 0.7876410354 | BO46: 0.791590645 | BP46: 0.7954640465 | BQ46: 0.7992635854 | BR46: 0.8029910718 | BS46: 0.8066477939 | BT46: 0.8102350069 | BU46: 0.8137549157 | BV46: 0.8172077459 | BW46: 0.8205956589 | BX46: 0.8239198307 | BY46: 0.8271813879 | BZ46: 0.8303819812 | CA46: 0.833522224 | CB46: 0.8366037376 | CC46: 0.8396271272 | CD46: 0.842594455 | CE46: 0.8455063272 | CF46: 0.8483633461 | CG46: 0.8511675237 | CH46: 0.8539190079 | CI46: 0.8566192959 | CJ46: 0.8592694346 | CK46: 0.8618700726 | CL46: 0.8644221436 | CM46: 0.8669267981 | CN46: 0.8693849921 | CO46: 0.8717968255 | CP46: 0.8741643409 | CQ46: 0.876487503 | CR46: 0.8787674243 | CS46: 0.8810055863 | CT46: 0.8832020361 | CU46: 0.8853573296 | CV46: 0.8874724803 | CW46: 0.8895489549 | CX46: 0.8915863361
Q47: 2043 | R47: 0.9145 | U47: 17 | V47: Rioja (la) | AY47: 1.823920962 | AZ47: 100 | BA47: 1.737369896 | BB47: 1.740371265 | BC47: 1.743489196 | BD47: 1.746685654 | BE47: 1.74992802 | BF47: 1.753195729 | BG47: 1.756468199 | BH47: 1.75973388 | BI47: 1.76297918 | BJ47: 1.766195439 | BK47: 1.76937588 | BL47: 1.772516453 | BM47: 1.775610653 | BN47: 1.778655442 | BO47: 1.781648588 | BP47: 1.78458734 | BQ47: 1.787470708 | BR47: 1.79029816 | BS47: 1.79306838 | BT47: 1.7957804 | BU47: 1.798435851 | BV47: 1.801031976 | BW47: 1.803570845 | BX47: 1.806053526 | BY47: 1.808477838 | BZ47: 1.810847391 | CA47: 1.813160261 | CB47: 1.815419113 | CC47: 1.817623337 | CD47: 1.81977462 | CE47: 1.821873598 | CF47: 1.823920962 | CG47: 1.825917449 | CH47: 1.827864922 | CI47: 1.829763103 | CJ47: 1.831612839 | CK47: 1.833417137 | CL47: 1.83517367 | CM47: 1.836886542 | CN47: 1.838554544 | CO47: 1.840178613 | CP47: 1.841761798 | CQ47: 1.843301898 | CR47: 1.844801973 | CS47: 1.846262982 | CT47: 1.847684855 | CU47: 1.849068568 | CV47: 1.850415101 | CW47: 1.851725433 | CX47: 1.852999523
Q48: 2044 | R48: 0.9125 | U48: 18 | V48: Ceuta | AC48: Situación aplicable | AD48: =IF(AC65<AB74,1,IF(AC65>AB74,2,0)) -> 0
Q49: 2045 | R49: 0.9105 | U49: 19 | V49: Melilla | AC49: Anticipada | AD49: 1 | AP49: Salario medio CA EES2015 INE | AZ49: Mujer | BA49: Años
Q50: 2046 | R50: 0.9085 | U50: 20 | V50: Media España | AC50: Demorada | AD50: 2 | AL50: Vivienda | AM50: Necesidades básicas | AN50: Salud | AO50: Ocio | AZ50: Edades | BA50: 2016 | BB50: 2017 | BC50: 2018 | BD50: 2019 | BE50: 2020 | BF50: 2021 | BG50: 2022 | BH50: 2023 | BI50: 2024 | BJ50: 2025 | BK50: 2026 | BL50: 2027 | BM50: 2028 | BN50: 2029 | BO50: 2030 | BP50: 2031 | BQ50: 2032 | BR50: 2033 | BS50: 2034 | BT50: 2035 | BU50: 2036 | BV50: 2037 | BW50: 2038 | BX50: 2039 | BY50: 2040 | BZ50: 2041 | CA50: 2042 | CB50: 2043 | CC50: 2044 | CD50: 2045 | CE50: 2046 | CF50: 2047 | CG50: 2048 | CH50: 2049 | CI50: 2050 | CJ50: 2051 | CK50: 2052 | CL50: 2053 | CM50: 2054 | CN50: 2055 | CO50: 2056 | CP50: 2057 | CQ50: 2058 | CR50: 2059 | CS50: 2060 | CT50: 2061 | CU50: 2062 | CV50: 2063 | CW50: 2064 | CX50: 2065
Q51: 2047 | R51: 0.9065 | AJ51: 1 | AK51: Andalucía | AL51: 272.5975131 | AM51: 329.492116 | AN51: 92.67310042 | AO51: 235.7030456 | AP51: 21381.03 | AZ51: 61 | BA51: 0.9963914927 | BB51: 0.9963942764 | BC51: 0.9963971565 | BD51: 0.9964001187 | BE51: 0.9964031518 | BF51: 0.9964062466 | BG51: 0.9964093956 | BH51: 0.9964120878 | BI51: 0.9964153276 | BJ51: 0.996418606 | BK51: 0.9964219191 | BL51: 0.9964247678 | BM51: 0.9964281412 | BN51: 0.9964315409 | BO51: 0.9964344588 | BP51: 0.996437905 | BQ51: 0.9964413717 | BR51: 0.9964443615 | BS51: 0.9964478652 | BT51: 0.9964513855 | BU51: 0.9964549213 | BV51: 0.9964574686 | BW51: 0.9964610326 | BX51: 0.9964646093 | BY51: 0.996467702 | BZ51: 0.9964713023 | CA51: 0.9964749134 | CB51: 0.9964780385 | CC51: 0.9964816696 | CD51: 0.9964848024 | CE51: 0.9964879551 | CF51: 0.9964916124 | CG51: 0.9964947814 | CH51: 0.9964984544 | CI51: 0.9965021346 | CJ51: 0.9965053254 | CK51: 0.9965085111 | CL51: 0.9965117149 | CM51: 0.9965154211 | CN51: 0.9965186368 | CO51: 0.9965223546 | CP51: 0.9965255814 | CQ51: 0.9965293098 | CR51: 0.9965320383 | CS51: 0.9965357765 | CT51: 0.996539023 | CU51: 0.9965422739 | CV51: 0.9965460257 | CW51: 0.9965492852 | CX51: 0.9965530454
Q52: 2048 | R52: 0.9045 | V52: PERFIL DE RIESGO | AC52: Trimestres penalización por jubilación anticipada | AD52: =ROUNDUP(YEARFRAC(AC65,AB69)*4,0) -> 0 | AJ52: 2 | AK52: Aragón | AL52: 318.8824797 | AM52: 385.4373498 | AN52: 108.408282 | AO52: 275.7236147 | AP52: 22327.18 | AZ52: 62 | BA52: 0.9961450409 | BB52: 0.9961554731 | BC52: 0.9961664561 | BD52: 0.9961769839 | BE52: 0.9961870501 | BF52: 0.996197649 | BG52: 0.9962082774 | BH52: 0.9962189319 | BI52: 0.9962296097 | BJ52: 0.9962398083 | BK52: 0.9962505261 | BL52: 0.9962602569 | BM52: 0.996271008 | BN52: 0.9962812729 | BO52: 0.9962920519 | BP52: 0.9963023424 | BQ52: 0.9963126444 | BR52: 0.9963229542 | BS52: 0.9963332767 | BT52: 0.9963436085 | BU52: 0.996353949 | BV52: 0.9963637939 | BW52: 0.9963741502 | BX52: 0.9963845137 | BY52: 0.9963943804 | BZ52: 0.9964042557 | CA52: 0.9964146387 | CB52: 0.9964245239 | CC52: 0.9964349183 | CD52: 0.9964448161 | CE52: 0.9964547173 | CF52: 0.9964646249 | CG52: 0.9964745354 | CH52: 0.9964844519 | CI52: 0.9964943725 | CJ52: 0.9965042957 | CK52: 0.9965142242 | CL52: 0.9965236528 | CM52: 0.9965335884 | CN52: 0.996543024 | CO52: 0.9965529663 | CP52: 0.9965624083 | CQ52: 0.9965723568 | CR52: 0.9965818048 | CS52: 0.9965917591 | CT52: 0.9966012127 | CU52: 0.996610669 | CV52: 0.9966201286 | CW52: 0.99662959 | CX52: 0.9966395571
Q53: 2049 | R53: 0.9028 | AC53: Coeficiene reductor por trimestre | AD53: =VLOOKUP(AC66,$AC$39:$AD$42,2) -> 0.01875 | AJ53: 3 | AK53: Asturias (Principado de) | AL53: 305.8926828 | AM53: 369.7364154 | AN53: 103.9922301 | AO53: 264.4919103 | AP53: 22826.06 | AZ53: 63 | BA53: 0.9959209706 | BB53: 0.9959430452 | BC53: 0.9959658128 | BD53: 0.995987337 | BE53: 0.996008629 | BF53: 0.9960297417 | BG53: 0.9960506851 | BH53: 0.9960714779 | BI53: 0.99609165 | BJ53: 0.9961116868 | BK53: 0.9961321133 | BL53: 0.996151455 | BM53: 0.9961712051 | BN53: 0.996190372 | BO53: 0.996209961 | BP53: 0.9962289793 | BQ53: 0.9962479314 | BR53: 0.9962673208 | BS53: 0.9962856705 | BT53: 0.9963044496 | BU53: 0.9963226956 | BV53: 0.9963408945 | BW53: 0.9963590491 | BX53: 0.9963771617 | BY53: 0.9963952347 | BZ53: 0.9964127718 | CA53: 0.9964302905 | CB53: 0.9964482569 | CC53: 0.9964657101 | CD53: 0.9964826348 | CE53: 0.9965000289 | CF53: 0.9965168971 | CG53: 0.9965342371 | CH53: 0.9965510538 | CI53: 0.9965673664 | CJ53: 0.9965846338 | CK53: 0.9966009014 | CL53: 0.9966176273 | CM53: 0.9966338532 | CN53: 0.9966500597 | CO53: 0.9966662473 | CP53: 0.9966824167 | CQ53: 0.9966985686 | CR53: 0.9967142249 | CS53: 0.9967303436 | CT53: 0.9967459681 | CU53: 0.9967620557 | CV53: 0.996777153 | CW53: 0.9967927335 | CX53: 0.9968083004
Q54: 2050 | R54: 0.9011 | V54: Conservador | W54: =C73 -> 0.015 | AC54: Años jubilación demorada | AD54: =ROUNDDOWN(YEARFRAC(AC65,AB74),0) -> 0 | AJ54: 4 | AK54: Balears (Illes) | AL54: 354.0856934 | AM54: 427.9879265 | AN54: 120.3760763 | AO54: 306.1622809 | AP54: 21395.42 | AZ54: 64 | BA54: 0.9956422981 | BB54: 0.9956722541 | BC54: 0.9957021627 | BD54: 0.9957315001 | BE54: 0.9957612972 | BF54: 0.9957900502 | BG54: 0.9958187629 | BH54: 0.9958474395 | BI54: 0.9958755696 | BJ54: 0.9959036999 | BK54: 0.9959322878 | BL54: 0.9959593695 | BM54: 0.9959869122 | BN54: 0.9960139516 | BO54: 0.9960414545 | BP54: 0.9960679755 | BQ54: 0.9960949626 | BR54: 0.9961214532 | BS54: 0.9961478941 | BT54: 0.9961738769 | BU54: 0.9961998112 | BV54: 0.9962252533 | BW54: 0.9962511646 | BX54: 0.9962761058 | BY54: 0.9963015173 | BZ54: 0.9963269196 | CA54: 0.9963513153 | CB54: 0.9963762216 | CC54: 0.9964006013 | CD54: 0.9964244948 | CE54: 0.9964483814 | CF54: 0.9964727396 | CG54: 0.9964961352 | CH54: 0.9965200028 | CI54: 0.9965428669 | CJ54: 0.9965667231 | CK54: 0.9965895762 | CL54: 0.9966129447 | CM54: 0.9966353108 | CN54: 0.9966576724 | CO54: 0.9966805062 | CP54: 0.996702859 | CQ54: 0.9967247315 | CR54: 0.996746555 | CS54: 0.99676842 | CT54: 0.9967897598 | CU54: 0.9968116179 | CV54: 0.9968329508 | CW54: 0.9968542803 | CX54: 0.9968751312
Q55: 2051 | R55: 0.8994 | V55: Moderado | W55: =C74 -> 0.03 | AC55: Bonificación por año | AD55: =VLOOKUP(AD74,$AF$39:$AG$41,2) -> 0.0275 | AJ55: 5 | AK55: Canarias | AL55: 246.3852491 | AM55: 297.8090159 | AN55: 83.76189745 | AO55: 213.0384572 | AP55: 19856.61 | AZ55: 65 | BA55: 0.9952360802 | BB55: 0.9952730957 | BC55: 0.995310084 | BD55: 0.9953469837 | BE55: 0.995384243 | BF55: 0.9954213036 | BG55: 0.9954581377 | BH55: 0.9954947141 | BI55: 0.9955315124 | BJ55: 0.9955679949 | BK55: 0.9956046692 | BL55: 0.9956404757 | BM55: 0.9956769498 | BN55: 0.9957125393 | BO55: 0.9957482677 | BP55: 0.9957835854 | BQ55: 0.9958190239 | BR55: 0.9958535392 | BS55: 0.9958886682 | BT55: 0.9959228484 | BU55: 0.9959571236 | BV55: 0.9959909576 | BW55: 0.9960248772 | BX55: 0.9960578263 | BY55: 0.9960913609 | BZ55: 0.9961249578 | CA55: 0.9961575848 | CB55: 0.9961897589 | CC55: 0.9962224944 | CD55: 0.9962542504 | CE55: 0.9962855454 | CF55: 0.9963174076 | CG55: 0.9963482698 | CH55: 0.9963796956 | CI55: 0.9964101298 | CJ55: 0.9964411246 | CK55: 0.9964716335 | CL55: 0.996501668 | CM55: 0.9965312131 | CN55: 0.9965602805 | CO55: 0.9965904121 | CP55: 0.9966195404 | CQ55: 0.9966476638 | CR55: 0.9966768485 | CS55: 0.996705026 | CT55: 0.9967332291 | CU55: 0.9967609466 | CV55: 0.996788688 | CW55: 0.9968164527 | CX55: 0.9968437152
Q56: 2052 | R56: 0.8977 | V56: Agresivo | W56: 0.045 | AJ56: 6 | AK56: Cantabria | AL56: 332.7314427 | AM56: 402.1767693 | AN56: 113.1164186 | AO56: 287.6982022 | AP56: 21856.81 | AZ56: 66 | BA56: 0.9950140934 | BB56: 0.9950691459 | BC56: 0.9951244004 | BD56: 0.9951779165 | BE56: 0.9952312147 | BF56: 0.995283827 | BG56: 0.995335775 | BH56: 0.9953865832 | BI56: 0.9954367626 | BJ56: 0.9954868209 | BK56: 0.9955357805 | BL56: 0.9955846401 | BM56: 0.9956329139 | BN56: 0.9956801159 | BO56: 0.995726747 | BP56: 0.9957733062 | BQ56: 0.9958193055 | BR56: 0.9958642564 | BS56: 0.9959086564 | BT56: 0.9959530026 | BU56: 0.9959968057 | BV56: 0.9960400683 | BW56: 0.9960823008 | BX56: 0.9961244916 | BY56: 0.9961661497 | BZ56: 0.9962077704 | CA56: 0.9962483708 | CB56: 0.9962884463 | CC56: 0.9963284884 | CD56: 0.9963680089 | CE56: 0.9964065167 | CF56: 0.9964449971 | CG56: 0.9964829587 | CH56: 0.9965208953 | CI56: 0.9965578247 | CJ56: 0.9965947313 | CK56: 0.996631616 | CL56: 0.9966674969 | CM56: 0.9967033576 | CN56: 0.9967382165 | CO56: 0.9967730549 | CP56: 0.9968078776 | CQ56: 0.996841701 | CR56: 0.9968755057 | CS56: 0.9969088047 | CT56: 0.9969420885 | CU56: 0.9969743758 | CV56: 0.9970066491 | CW56: 0.9970384167 | CX56: 0.997070171
Q57: 2053 | R57: 0.896 | V57: Decreciente con la edad | AJ57: 7 | AK57: Castilla y León | AL57: 295.0090844 | AM57: 356.5812702 | AN57: 100.2922081 | AO57: 255.0813428 | AP57: 21296.1 | AZ57: 67 | BA57: 0.9945246427 | BB57: 0.9945868569 | BC57: 0.9946494809 | BD57: 0.9947109425 | BE57: 0.9947722049 | BF57: 0.9948327253 | BG57: 0.9948929779 | BH57: 0.9949524314 | BI57: 0.995011064 | BJ57: 0.9950698635 | BK57: 0.9951273063 | BL57: 0.9951848869 | BM57: 0.995241586 | BN57: 0.9952973928 | BO57: 0.9953533065 | BP57: 0.9954078075 | BQ57: 0.9954623999 | BR57: 0.9955160681 | BS57: 0.9955688058 | BT57: 0.9956216176 | BU57: 0.9956734915 | BV57: 0.9957249237 | BW57: 0.9957754062 | BX57: 0.9958259464 | BY57: 0.9958755298 | BZ57: 0.9959246599 | CA57: 0.9959728267 | CB57: 0.9960210395 | CC57: 0.9960682838 | CD57: 0.9961150642 | CE57: 0.9961613768 | CF57: 0.9962072214 | CG57: 0.9962520886 | CH57: 0.9962969899 | CI57: 0.9963409103 | CJ57: 0.9963848618 | CK57: 0.9964283369 | CL57: 0.9964708265 | CM57: 0.9965133434 | CN57: 0.9965548722 | CO57: 0.9965959183 | CP57: 0.9966369894 | CQ57: 0.9966770688 | CR57: 0.9967166626 | CS57: 0.9967557704 | CT57: 0.9967948988 | CU57: 0.9968330316 | CV57: 0.9968711835 | CW57: 0.9969083381 | CX57: 0.9969455104
Q58: 2054 | R58: 0.8946 | Z58: DETERMINACIÓN DE LA EDAD MÍNIMA Y LA EDAD LEGAL DE JUBILACIÓN | AJ58: 8 | AK58: Castilla-la Mancha | AL58: 260.2672379 | AM58: 314.588354 | AN58: 88.48126163 | AO58: 225.0416006 | AP58: 20670.55 | AZ58: 68 | BA58: 0.9939089167 | BB58: 0.9939913588 | BC58: 0.9940725189 | BD58: 0.9941523628 | BE58: 0.9942318747 | BF58: 0.9943100232 | BG58: 0.9943872963 | BH58: 0.9944631727 | BI58: 0.9945381467 | BJ58: 0.9946127067 | BK58: 0.9946858466 | BL58: 0.9947585556 | BM58: 0.9948298191 | BN58: 0.9949001401 | BO58: 0.9949700107 | BP58: 0.9950384316 | BQ58: 0.9951063931 | BR58: 0.9951733944 | BS58: 0.9952394321 | BT58: 0.9953044875 | BU58: 0.995368589 | BV58: 0.9954317022 | BW58: 0.9954943534 | BX58: 0.9955560108 | BY58: 0.9956172025 | BZ58: 0.9956769002 | CA58: 0.9957361296 | CB58: 0.9957943563 | CC58: 0.9958521119 | CD58: 0.9959088813 | CE58: 0.9959651575 | CF58: 0.9960204449 | CG58: 0.9960747423 | CH58: 0.9961285428 | CI58: 0.9961813512 | CJ58: 0.9962341763 | CK58: 0.9962860078 | CL58: 0.9963368449 | CM58: 0.9963871801 | CN58: 0.9964365194 | CO58: 0.9964853549 | CP58: 0.9965337101 | CQ58: 0.9965810674 | CR58: 0.9966279192 | CS58: 0.9966742894 | CT58: 0.9967201529 | CU58: 0.9967650164 | CV58: 0.9968093718 | CW58: 0.9968532443 | CX58: 0.9968966077
Q59: 2055 | R59: 0.8932 | V59: 0 | W59: =D75 -> 45 | X59: =D74 -> 55 | AJ59: 9 | AK59: Cataluña | AL59: 356.9673763 | AM59: 431.4710536 | AN59: 121.3557422 | AO59: 308.6539449 | AP59: 24321.57 | AZ59: 69 | BA59: 0.9933590957 | BB59: 0.993465696 | BC59: 0.9935704205 | BD59: 0.9936723494 | BE59: 0.9937734964 | BF59: 0.9938724192 | BG59: 0.9939696427 | BH59: 0.9940651886 | BI59: 0.9941590822 | BJ59: 0.9942513413 | BK59: 0.994341981 | BL59: 0.9944315048 | BM59: 0.9945189438 | BN59: 0.9946052897 | BO59: 0.9946900612 | BP59: 0.9947737569 | BQ59: 0.9948558933 | BR59: 0.9949369675 | BS59: 0.9950164947 | BT59: 0.9950944828 | BU59: 0.995171913 | BV59: 0.9952473232 | BW59: 0.9953221832 | BX59: 0.9953950313 | BY59: 0.9954673357 | BZ59: 0.9955381264 | CA59: 0.9956083792 | CB59: 0.9956766329 | CC59: 0.9957443534 | CD59: 0.995811057 | CE59: 0.9958767458 | CF59: 0.9959409304 | CG59: 0.9960045959 | CH59: 0.9960667609 | CI59: 0.9961279187 | CJ59: 0.9961885549 | CK59: 0.9962481868 | CL59: 0.9963068158 | CM59: 0.9963644432 | CN59: 0.9964210705 | CO59: 0.9964766988 | CP59: 0.9965318122 | CQ59: 0.9965859286 | CR59: 0.9966390492 | CS59: 0.9966916573 | CT59: 0.9967432711 | CU59: 0.9967938918 | CV59: 0.9968440126 | CW59: 0.9968931312 | CX59: 0.9969417515
Q60: 2056 | R60: 0.8918 | V60: =IF($R$8=$V$57,$W$56,VLOOKUP($R$8,$V$54:$W$56,2,0)) -> 0.045 | W60: =IF($R$8=$V$57,$W$55,VLOOKUP($R$8,$V$54:$W$56,2,0)) -> 0.03 | X60: =IF($R$8=$V$57,$W$54,VLOOKUP($R$8,$V$54:$W$56,2,0)) -> 0.015 | AB60: Fecha nacimiento | AC60: =IFERROR(DATE(Año,Mes,Día),DATE(1976,1,1)) -> 1980-01-01 | AD60: =YEARFRAC(AC60,TODAY()) -> 38.08055556 | AE60: ¿Edad legal = 65? | AF60: Fecha | AG60: Edad | AH60: Cotizados | AJ60: 10 | AK60: Comunitat Valenciana | AL60: 306.691012 | AM60: 370.7013662 | AN60: 104.2636326 | AO60: 265.1821903 | AP60: 20935.41 | AZ60: 70 | BA60: 0.9925066532 | BB60: 0.9926313124 | BC60: 0.992754323 | BD60: 0.9928746092 | BE60: 0.9929936518 | BF60: 0.9931109062 | BG60: 0.9932263443 | BH60: 0.9933399499 | BI60: 0.9934516953 | BJ60: 0.9935615634 | BK60: 0.9936695399 | BL60: 0.9937761219 | BM60: 0.9938807884 | BN60: 0.9939835339 | BO60: 0.9940848502 | BP60: 0.9941847341 | BQ60: 0.994282669 | BR60: 0.9943791581 | BS60: 0.9944736862 | BT60: 0.9945667574 | BU60: 0.9946588738 | BV60: 0.9947490153 | BW60: 0.9948376871 | BX60: 0.994924884 | BY60: 0.9950106042 | BZ60: 0.9950948445 | CA60: 0.9951781101 | CB60: 0.9952593816 | CC60: 0.995339165 | CD60: 0.9954179667 | CE60: 0.9954957849 | CF60: 0.9955716002 | CG60: 0.9956469367 | CH60: 0.9957202667 | CI60: 0.9957926063 | CJ60: 0.9958639543 | CK60: 0.9959337993 | CL60: 0.99600265 | CM60: 0.9960699947 | CN60: 0.9961368532 | CO60: 0.9962022034 | CP60: 0.9962665548 | CQ60: 0.9963299066 | CR60: 0.9963917468 | CS60: 0.9964530965 | CT60: 0.9965129329 | CU60: 0.9965717661 | CV60: 0.9966306146 | CW60: 0.9966874396 | CX60: 0.9967437669
Q61: 2057 | R61: 0.8904 | AB61: Fecha inicio cotización | AC61: =EDATE(TODAY(),-Años_cotizados*12-Meses_cotizados) -> 2018-01-30 | AE61: =IF(OR(AH61>=VLOOKUP(MAX(AM4-1,YEAR(AF61)),Transitorio,4),AG61>=VLOOKUP(MAX(AM4-1,YEAR(AF61)),Transitorio,3))=TRUE,"si","no") -> no | AF61: =EDATE(AC62,1) -> 2045-02-01 | AG61: =YEARFRAC($AC$60,AF61) -> 65.08333333 | AH61: =INT(YEARFRAC($AC$61,AF61)*12)/12 -> 27 | AJ61: 11 | AK61: Extremadura | AL61: 260.0514531 | AM61: 314.3275322 | AN61: 88.40790276 | AO61: 224.855021 | AP61: 19564.49 | AZ61: 71 | BA61: 0.9919268515 | BB61: 0.9920767516 | BC61: 0.9922237344 | BD61: 0.9923672976 | BE61: 0.9925089212 | BF61: 0.9926481048 | BG61: 0.9927843475 | BH61: 0.9929181388 | BI61: 0.993049477 | BJ61: 0.9931783586 | BK61: 0.9933052777 | BL61: 0.9934292376 | BM61: 0.9935512305 | BN61: 0.9936707603 | BO61: 0.9937883174 | BP61: 0.9939039036 | BQ61: 0.994017019 | BR61: 0.9941281613 | BS61: 0.9942368304 | BT61: 0.9943435245 | BU61: 0.9944487362 | BV61: 0.9945519714 | BW61: 0.9946532298 | BX61: 0.9947525028 | BY61: 0.9948497973 | BZ61: 0.994945614 | CA61: 0.9950394427 | CB61: 0.995131793 | CC61: 0.9952216624 | CD61: 0.9953105444 | CE61: 0.9953974352 | CF61: 0.9954828468 | CG61: 0.9955672702 | CH61: 0.9956492101 | CI61: 0.9957301612 | CJ61: 0.9958096206 | CK61: 0.9958870978 | CL61: 0.9959635856 | CM61: 0.9960380909 | CN61: 0.9961120961 | CO61: 0.9961841184 | CP61: 0.9962551507 | CQ61: 0.9963246889 | CR61: 0.9963927477 | CS61: 0.996459801 | CT61: 0.9965253747 | CU61: 0.9965899577 | CV61: 0.996653534 | CW61: 0.9967156307 | CX61: 0.9967767362
Q62: 2058 | R62: 0.889 | AB62: Fecha 65 años | AC62: =EDATE($AC$60,65*12) -> 2045-01-01 | AD62: ¿Edad legal = 65? | AE62: no | AF62: =EDATE(AF61,1) -> 2045-03-01 | AG62: 65.16666667 | AH62: =INT(YEARFRAC($AC$61,AF62)*12)/12 -> 27.08333333 | AJ62: 12 | AK62: Galicia | AL62: 278.0187022 | AM62: 336.044777 | AN62: 94.51610478 | AO62: 240.3905088 | AP62: 20624.55 | AZ62: 72 | BA62: 0.9908127182 | BB62: 0.9909974666 | BC62: 0.9911782179 | BD62: 0.9913549606 | BE62: 0.9915287083 | BF62: 0.9916989562 | BG62: 0.9918652013 | BH62: 0.9920284534 | BI62: 0.9921882086 | BJ62: 0.9923449623 | BK62: 0.9924992189 | BL62: 0.9926489822 | BM62: 0.9927967445 | BN62: 0.9929415146 | BO62: 0.99308279 | BP62: 0.9932220654 | BQ62: 0.9933578467 | BR62: 0.9934911317 | BS62: 0.9936214199 | BT62: 0.9937497097 | BU62: 0.9938750061 | BV62: 0.9939978064 | BW62: 0.9941186083 | BX62: 0.9942364147 | BY62: 0.9943517252 | BZ62: 0.9944655373 | CA62: 0.9945763543 | CB62: 0.9946851738 | CC62: 0.9947919964 | CD62: 0.9948963223 | CE62: 0.9949986522 | CF62: 0.9950989842 | CG62: 0.9951973175 | CH62: 0.9952936559 | CI62: 0.9953879956 | CJ62: 0.9954808387 | CK62: 0.9955711855 | CL62: 0.9956600331 | CM62: 0.9957468844 | CN62: 0.9958322363 | CO62: 0.9959160928 | CP62: 0.995997949 | CQ62: 0.9960783102 | CR62: 0.9961571718 | CS62: 0.9962340377 | CT62: 0.9963094038 | CU62: 0.9963837714 | CV62: 0.9964561435 | CW62: 0.9965270156 | CX62: 0.9965968893
Q63: 2059 | R63: 0.8878 | AB63: Cotizados con 65 años | AC63: =INT(YEARFRAC($AC$61,AC62)*12)/12 -> 26.91666667 | AD63: =IF(AC63>=VLOOKUP(MAX(AM4-1,YEAR(AC62)),Transitorio,4),"si","no") -> no | AE63: no | AF63: =EDATE(AF62,1) -> 2045-04-01 | AG63: 65.25 | AH63: 27.16666667 | AJ63: 13 | AK63: Madrid (Comunidad de) | AL63: 391.0035147 | AM63: 472.6109713 | AN63: 132.9267739 | AO63: 338.0834925 | AP63: 26448.04 | AZ63: 73 | BA63: 0.9897267102 | BB63: 0.9899493494 | BC63: 0.9901663409 | BD63: 0.9903782941 | BE63: 0.9905857728 | BF63: 0.9907883599 | BG63: 0.99098611 | BH63: 0.9911795519 | BI63: 0.9913682415 | BJ63: 0.9915531999 | BK63: 0.9917344552 | BL63: 0.9919110224 | BM63: 0.9920839542 | BN63: 0.9922532263 | BO63: 0.9924183732 | BP63: 0.9925804174 | BQ63: 0.9927383648 | BR63: 0.9928932138 | BS63: 0.9930449752 | BT63: 0.9931931959 | BU63: 0.9933383276 | BV63: 0.9934799159 | BW63: 0.9936189529 | BX63: 0.9937549432 | BY63: 0.9938874105 | BZ63: 0.9940178275 | CA63: 0.9941447326 | CB63: 0.9942690962 | CC63: 0.9943914423 | CD63: 0.9945102721 | CE63: 0.9946270923 | CF63: 0.9947413874 | CG63: 0.9948526785 | CH63: 0.9949624522 | CI63: 0.9950692283 | CJ63: 0.9951740098 | CK63: 0.9952767642 | CL63: 0.9953765466 | CM63: 0.9954748067 | CN63: 0.9955705819 | CO63: 0.9956648559 | CP63: 0.995756632 | CQ63: 0.9958469105 | CR63: 0.9959351941 | CS63: 0.9960214843 | CT63: 0.9961057828 | CU63: 0.9961885898 | CV63: 0.996269408 | CW63: 0.9963482389 | CX63: 0.996425582
Q64: 2060 | R64: 0.8866 | AB64: Fecha 67 años | AC64: =EDATE($AC$60,67*12) -> 2047-01-01 | AE64: no | AF64: 2045-05-01 | AG64: 65.33333333 | AH64: 27.25 | AJ64: 14 | AK64: Murcia (Región de) | AL64: 281.7637725 | AM64: 340.5714916 | AN64: 95.78929055 | AO64: 243.6287058 | AP64: 20928.98 | AZ64: 74 | BA64: 0.9882479804 | BB64: 0.9884987049 | BC64: 0.988743894 | BD64: 0.9889844586 | BE64: 0.989220369 | BF64: 0.9894515538 | BG64: 0.9896774841 | BH64: 0.9898991362 | BI64: 0.9901154746 | BJ64: 0.9903279768 | BK64: 0.9905356392 | BL64: 0.9907389363 | BM64: 0.9909378283 | BN64: 0.9911328437 | BO64: 0.9913234533 | BP64: 0.9915101394 | BQ64: 0.9916923997 | BR64: 0.9918717286 | BS64: 0.9920466395 | BT64: 0.9922175703 | BU64: 0.9923855732 | BV64: 0.992549608 | BW64: 0.9927101867 | BX64: 0.9928673042 | BY64: 0.9930209328 | BZ64: 0.993171609 | CA64: 0.9933182943 | CB64: 0.9934625138 | CC64: 0.9936037472 | CD64: 0.9937414971 | CE64: 0.9938762549 | CF64: 0.9940085354 | CG64: 0.9941378188 | CH64: 0.9942646202 | CI64: 0.9943884201 | CJ64: 0.9945092164 | CK64: 0.994628042 | CL64: 0.9947438379 | CM64: 0.9948571645 | CN64: 0.9949679756 | CO64: 0.9950767872 | CP64: 0.9951831027 | CQ64: 0.9952869206 | CR64: 0.9953892306 | CS64: 0.9954885451 | CT64: 0.9955863495 | CU64: 0.9956816516 | CV64: 0.9957749459 | CW64: 0.9958662317 | CX64: 0.995955012
AB65: Fecha jubilación | AC65: =EDATE($AC$60,Años_edad_jubilación*12+Meses_edad_jubilación) -> 2047-01-01 | AD65: =YEARFRAC(AC65,AC60) -> 67 | AE65: no | AF65: 2045-06-01 | AG65: 65.41666667 | AH65: 27.33333333 | AJ65: 15 | AK65: Navarra (Comunidad foral) | AL65: 377.227556 | AM65: 455.959793 | AN65: 128.243456 | AO65: 326.1720286 | AP65: 24863.98 | AZ65: 75 | BA65: 0.9868981182 | BB65: 0.9871969919 | BC65: 0.9874879879 | BD65: 0.9877723391 | BE65: 0.9880492351 | BF65: 0.9883193262 | BG65: 0.9885826922 | BH65: 0.9888399387 | BI65: 0.9890906398 | BJ65: 0.9893363529 | BK65: 0.9895751813 | BL65: 0.9898086268 | BM65: 0.9900372429 | BN65: 0.9902600927 | BO65: 0.9904776819 | BP65: 0.9906900809 | BQ65: 0.9908977487 | BR65: 0.9911012563 | BS65: 0.9912991059 | BT65: 0.9914933072 | BU65: 0.9916824368 | BV65: 0.9918679149 | BW65: 0.9920488222 | BX65: 0.9922251739 | BY65: 0.9923984232 | BZ65: 0.9925671425 | CA65: 0.9927322764 | CB65: 0.9928934086 | CC65: 0.9930514813 | CD65: 0.9932055315 | CE65: 0.9933560734 | CF65: 0.9935035804 | CG65: 0.9936475944 | CH65: 0.9937885873 | CI65: 0.9939261005 | CJ65: 0.9940606051 | CK65: 0.9941921066 | CL65: 0.9943211153 | CM65: 0.9944461614 | CN65: 0.9945691889 | CO65: 0.9946897373 | CP65: 0.994807306 | CQ65: 0.994921899 | CR65: 0.9950345294 | CS65: 0.9951441507 | CT65: 0.9952518159 | CU65: 0.9953565195 | CV65: 0.9954592322 | CW65: 0.9955599569 | CX65: 0.9956577285
AB66: Cotizados en la fecha de jubilación | AC66: =INT(YEARFRAC($AC$61,AC65)*12)/12 -> 28.91666667 | AE66: no | AF66: 2045-07-01 | AG66: 65.5 | AH66: 27.41666667 | AJ66: 16 | AK66: País vasco | AL66: 395.4453538 | AM66: 477.9798793 | AN66: 134.4368354 | AO66: 341.9241548 | AP66: 27571.31 | AZ66: 76 | BA66: 0.9848467783 | BB66: 0.9851769746 | BC66: 0.9855000204 | BD66: 0.9858168285 | BE66: 0.9861268362 | BF66: 0.9864295363 | BG66: 0.9867259094 | BH66: 0.9870159355 | BI66: 0.9873000735 | BJ66: 0.987577886 | BK66: 0.9878492533 | BL66: 0.9881152232 | BM66: 0.9883757862 | BN66: 0.9886299281 | BO66: 0.9888786472 | BP66: 0.9891218802 | BQ66: 0.9893602085 | BR66: 0.9895930957 | BS66: 0.9898210111 | BT66: 0.9900444823 | BU66: 0.9902619663 | BV66: 0.9904755308 | BW66: 0.9906841073 | BX66: 0.9908876925 | BY66: 0.9910878232 | BZ66: 0.9912829566 | CA66: 0.9914741572 | CB66: 0.9916608289 | CC66: 0.9918435637 | CD66: 0.9920227725 | CE66: 0.9921975066 | CF66: 0.9923682988 | CG66: 0.9925355593 | CH66: 0.992699348 | CI66: 0.9928596015 | CJ66: 0.9930159077 | CK66: 0.9931692109 | CL66: 0.9933190375 | CM66: 0.9934653233 | CN66: 0.9936086658 | CO66: 0.993749001 | CP66: 0.9938858555 | CQ66: 0.9940201732 | CR66: 0.9941510083 | CS66: 0.9942793687 | CT66: 0.9944051896 | CU66: 0.9945275257 | CV66: 0.9946473851 | CW66: 0.9947652392 | CX66: 0.9948800787
AE67: no | AF67: 2045-08-01 | AG67: 65.58333333 | AH67: 27.5 | AJ67: 17 | AK67: Rioja (la) | AL67: 299.8561718 | AM67: 362.440007 | AN67: 101.940039 | AO67: 259.2724055 | AP67: 21756.79 | AZ67: 77 | BA67: 0.9824924733 | BB67: 0.9828679079 | BC67: 0.983235245 | BD67: 0.983595389 | BE67: 0.9839487129 | BF67: 0.984294118 | BG67: 0.984632536 | BH67: 0.9849639037 | BI67: 0.985289176 | BJ67: 0.9856062892 | BK67: 0.9859177067 | BL67: 0.9862224236 | BM67: 0.9865208951 | BN67: 0.9868120845 | BO67: 0.9870974634 | BP67: 0.9873775357 | BQ67: 0.9876512723 | BR67: 0.9879186558 | BS67: 0.9881806818 | BT67: 0.9884373366 | BU67: 0.988688082 | BV67: 0.988933432 | BW67: 0.9891738621 | BX67: 0.9894088766 | BY67: 0.9896389922 | BZ67: 0.9898641613 | CA67: 0.9900843761 | CB67: 0.9902996693 | CC67: 0.9905104812 | CD67: 0.990717372 | CE67: 0.9909187963 | CF67: 0.991116209 | CG67: 0.991309198 | CH67: 0.9914982057 | CI67: 0.9916837548 | CJ67: 0.9918643004 | CK67: 0.9920413796 | CL67: 0.9922144618 | CM67: 0.9923840708 | CN67: 0.9925496761 | CO67: 0.9927122893 | CP67: 0.9928704057 | CQ67: 0.993026052 | CR67: 0.9931776835 | CS67: 0.9933263126 | CT67: 0.9934719774 | CU67: 0.9936136202 | CV67: 0.9937527418 | CW67: 0.9938888929 | CX67: 0.9940220316
AB68: Fecha | AC68: Edad | AD68: Cotizados | AE68: no | AF68: 2045-09-01 | AG68: 65.66666667 | AH68: 27.58333333 | AJ68: 18 | AK68: Ceuta | AL68: 272.5975131 | AM68: 329.492116 | AN68: 92.67310042 | AO68: 235.7030456 | AP68: 21381.03 | AZ68: 78 | BA68: 0.9798118826 | BB68: 0.9802541295 | BC68: 0.9806857198 | BD68: 0.9811077247 | BE68: 0.981520252 | BF68: 0.9819233368 | BG68: 0.9823170612 | BH68: 0.9827024415 | BI68: 0.9830795437 | BJ68: 0.9834478563 | BK68: 0.9838084648 | BL68: 0.9841608496 | BM68: 0.9845050604 | BN68: 0.9848420583 | BO68: 0.9851714309 | BP68: 0.9854941639 | BQ68: 0.9858092701 | BR68: 0.9861177324 | BS68: 0.9864191039 | BT68: 0.9867138796 | BU68: 0.9870025533 | BV68: 0.9872846474 | BW68: 0.9875611678 | BX68: 0.9878311219 | BY68: 0.9880950011 | BZ68: 0.9883538099 | CA68: 0.9886065821 | CB68: 0.9888532946 | CC68: 0.9890954636 | CD68: 0.9893320944 | CE68: 0.9895631628 | CF68: 0.9897902117 | CG68: 0.9900112196 | CH68: 0.990227701 | CI68: 0.9904401438 | CJ68: 0.9906470671 | CK68: 0.990849957 | CL68: 0.9910483302 | CM68: 0.991242189 | CN68: 0.9914320207 | CO68: 0.9916183398 | CP68: 0.9917996375 | CQ68: 0.991977426 | CR68: 0.9921516796 | CS68: 0.9923219418 | CT68: 0.9924881868 | CU68: 0.992650416 | CV68: 0.9928101407 | CW68: 0.992965852 | CX68: 0.9931180635
AA69: Edad legal según cuadro a continuación | AB69: =IF(AD63="si",AC62,IFERROR(VLOOKUP("si",$AE$61:$AH$84,2,0),AC64)) -> 2047-01-01 | AC69: =YEARFRAC($AC$60,AB69) -> 67 | AD69: =INT(YEARFRAC($AC$61,AB69)*12)/12 -> 28.91666667 | AE69: no | AF69: 2045-10-01 | AG69: 65.75 | AH69: 27.66666667 | AJ69: 19 | AK69: Melilla | AL69: 272.5975131 | AM69: 329.492116 | AN69: 92.67310042 | AO69: 235.7030456 | AP69: 21381.03 | AZ69: 79 | BA69: 0.9765591492 | BB69: 0.9770491621 | BC69: 0.9775291729 | BD69: 0.9780000615 | BE69: 0.9784611963 | BF69: 0.9789134837 | BG69: 0.9793563303 | BH69: 0.9797902073 | BI69: 0.9802150333 | BJ69: 0.9806317637 | BK69: 0.9810393527 | BL69: 0.9814387676 | BM69: 0.9818294625 | BN69: 0.9822129513 | BO69: 0.9825876666 | BP69: 0.9829551051 | BQ69: 0.9833147327 | BR69: 0.9836670686 | BS69: 0.9840115591 | BT69: 0.9843491952 | BU69: 0.9846794944 | BV69: 0.9850034053 | BW69: 0.9853204473 | BX69: 0.9856300957 | BY69: 0.9859338392 | BZ69: 0.9862316915 | CA69: 0.9865226155 | CB69: 0.9868076106 | CC69: 0.9870866917 | CD69: 0.9873593376 | CE69: 0.9876270422 | CF69: 0.9878888142 | CG69: 0.9881451196 | CH69: 0.9883959751 | CI69: 0.9886418905 | CJ69: 0.9888818322 | CK69: 0.9891173184 | CL69: 0.9893478308 | CM69: 0.9895733659 | CN69: 0.9897939411 | CO69: 0.9900100468 | CP69: 0.990221659 | CQ69: 0.9904283018 | CR69: 0.9906314748 | CS69: 0.9908301464 | CT69: 0.9910243345 | CU69: 0.9912140369 | CV69: 0.99140026 | CW69: 0.991582487 | CX69: 0.9917607162
B70: HIPÓTESIS DE CÁLCULO | AA70: Edad mínima según edad legal | AB70: =EDATE(AB69,-48) -> 2043-01-01 | AC70: =YEARFRAC($AC$60,AB70) -> 63 | AD70: =INT(YEARFRAC($AC$61,AB70)*12)/12 -> 24.91666667 | AE70: no | AF70: 2045-11-01 | AG70: 65.83333333 | AH70: 27.75 | AK70: Media España | AL70: 316.2704657 | AM70: 382.280175 | AN70: 107.5202936 | AO70: 273.4651214 | AP70: 23106.3 | AZ70: 80 | BA70: 0.9726887 | BB70: 0.9732628388 | BC70: 0.9738247461 | BD70: 0.9743745405 | BE70: 0.9749118332 | BF70: 0.9754381797 | BG70: 0.9759531596 | BH70: 0.9764567995 | BI70: 0.976949655 | BJ70: 0.9774322744 | BK70: 0.9779046644 | BL70: 0.9783668794 | BM70: 0.9788189443 | BN70: 0.9792618489 | BO70: 0.9796956126 | BP70: 0.9801197935 | BQ70: 0.9805353748 | BR70: 0.9809418615 | BS70: 0.9813397748 | BT70: 0.9817301185 | BU70: 0.9821109172 | BV70: 0.9824851581 | BW70: 0.9828503796 | BX70: 0.983208043 | BY70: 0.9835586867 | BZ70: 0.983901809 | CA70: 0.9842379006 | CB70: 0.9845669897 | CC70: 0.9848890585 | CD70: 0.9852036273 | CE70: 0.9855126841 | CF70: 0.985814734 | CG70: 0.9861107948 | CH70: 0.9864003628 | CI70: 0.9866839263 | CJ70: 0.9869614886 | CK70: 0.987233559 | CL70: 0.9874996553 | CM70: 0.9877607498 | CN70: 0.9880153684 | CO70: 0.9882649901 | CP70: 0.9885101231 | CQ70: 0.9887492718 | CR70: 0.9889839357 | CS70: 0.989213631 | CT70: 0.9894383387 | CU70: 0.9896585459 | CV70: 0.9898737891 | CW70: 0.9900845552 | CX70: 0.9902913307
D71: Hasta qué edad si se elige perfil decreciente | AA71: Fecha 15 cotizados | AB71: =EDATE($AC$61,180) -> 2033-01-30 | AE71: no | AF71: 2045-12-01 | AG71: 65.91666667 | AH71: 27.83333333 | AZ71: 81 | BA71: 0.9681116803 | BB71: 0.9687547218 | BC71: 0.9693856383 | BD71: 0.9700034837 | BE71: 0.9706087247 | BF71: 0.9712014401 | BG71: 0.9717825747 | BH71: 0.9723516866 | BI71: 0.9729092665 | BJ71: 0.9734558043 | BK71: 0.9739913375 | BL71: 0.9745158382 | BM71: 0.9750293103 | BN71: 0.9755327888 | BO71: 0.9760267605 | BP71: 0.9765097121 | BQ71: 0.9769836455 | BR71: 0.9774475944 | BS71: 0.9779020444 | BT71: 0.9783479968 | BU71: 0.9787844217 | BV71: 0.9792123827 | BW71: 0.9796313028 | BX71: 0.9800417606 | BY71: 0.9804442102 | BZ71: 0.9808386525 | CA71: 0.9812251187 | CB71: 0.9816035788 | CC71: 0.9819745485 | CD71: 0.982337513 | CE71: 0.982693503 | CF71: 0.9830424885 | CG71: 0.9833844699 | CH71: 0.9837189626 | CI71: 0.9840474517 | CJ71: 0.9843689675 | CK71: 0.9846844802 | CL71: 0.98499299 | CM71: 0.9852955269 | CN71: 0.9855915464 | CO71: 0.9858820783 | CP71: 0.9861666375 | CQ71: 0.9864456798 | CR71: 0.9867192347 | CS71: 0.9869863025 | CT71: 0.9872488537 | CU71: 0.9875059471 | CV71: 0.9877575241 | CW71: 0.9880040996 | CX71: 0.988246188
B72: Rentabilidad del ahorro | P72: RESULTADOS INTERMEDIOS | AA72: Fecha 33 cotizados | AB72: =EDATE($AC$61,33*12) -> 2051-01-30 | AE72: no | AF72: 2046-01-01 | AG72: 66 | AH72: 27.91666667 | AZ72: 82 | BA72: 0.963269156 | BB72: 0.9639783273 | BC72: 0.9646746582 | BD72: 0.9653570993 | BE72: 0.9660271538 | BF72: 0.9666832938 | BG72: 0.9673275429 | BH72: 0.9679588605 | BI72: 0.9685782403 | BJ72: 0.969185708 | BK72: 0.9697817112 | BL72: 0.9703657922 | BM72: 0.9709389159 | BN72: 0.9715005938 | BO72: 0.9720518234 | BP72: 0.9725920854 | BQ72: 0.9731224089 | BR72: 0.9736417593 | BS72: 0.9741511354 | BT72: 0.9746510507 | BU72: 0.9751415029 | BV72: 0.9756219747 | BW72: 0.9760939808 | BX72: 0.9765560031 | BY72: 0.9770090707 | BZ72: 0.9774541535 | CA72: 0.9778902491 | CB72: 0.9783178715 | CC72: 0.9787370194 | CD72: 0.9791481777 | CE72: 0.9795513452 | CF72: 0.97994655 | CG72: 0.9803347632 | CH72: 0.9807149829 | CI72: 0.9810882379 | CJ72: 0.9814534974 | CK72: 0.9818127635 | CL72: 0.9821645475 | CM72: 0.9825093351 | CN72: 0.9828471539 | CO72: 0.9831794631 | CP72: 0.9835042872 | CQ72: 0.9838236286 | CR72: 0.984136485 | CS72: 0.9844433152 | CT72: 0.9847442016 | CU72: 0.9850390608 | CV72: 0.9853284344 | CW72: 0.985612322 | CX72: 0.985890723
B73: Perfil conservador | C73: 0.015 | AA73: Edad mínima efectiva | AB73: =MAX(AB71,MIN(AB69,MAX(AB70:AB72))) -> 2047-01-01 | AC73: =IFERROR(ROUNDUP(YEARFRAC($AC$60,AB73)*12,0)/12,67) -> 67 | AD73: =INT(YEARFRAC($AC$61,AB73)*12)/12 -> 28.91666667 | AE73: no | AF73: 2046-02-01 | AG73: 66.08333333 | AH73: 28 | AK73: Vivienda | AL73: =ROUND(VLOOKUP($R$5,$AK$51:$AO$70,2,0)*AR76/10,0)*10 -> 0 | AQ73: Salario medio | AR73: =ROUND(VLOOKUP(R5,AK51:AP70,6,0)/100,0)*100 -> 23100 | AZ73: 83 | BA73: 0.9572936688 | BB73: 0.9580905773 | BC73: 0.9588724875 | BD73: 0.9596389976 | BE73: 0.9603916537 | BF73: 0.9611299926 | BG73: 0.9618540897 | BH73: 0.9625644638 | BI73: 0.9632616599 | BJ73: 0.9639456715 | BK73: 0.9646170671 | BL73: 0.9652753187 | BM73: 0.9659219557 | BN73: 0.966555994 | BO73: 0.9671779608 | BP73: 0.9677888339 | BQ73: 0.9683881395 | BR73: 0.9689758863 | BS73: 0.9695525964 | BT73: 0.9701187602 | BU73: 0.9706748678 | BV73: 0.9712199571 | BW73: 0.9717555149 | BX73: 0.9722805479 | BY73: 0.9727955442 | BZ73: 0.9733015355 | CA73: 0.9737980113 | CB73: 0.9742849748 | CC73: 0.9747629132 | CD73: 0.9752318584 | CE73: 0.9756922973 | CF73: 0.9761437185 | CG73: 0.9765876356 | CH73: 0.9770225681 | CI73: 0.9774494868 | CJ73: 0.9778683936 | CK73: 0.9782803163 | CL73: 0.9786837454 | CM73: 0.9790796799 | CN73: 0.9794680929 | CO73: 0.97985004 | CP73: 0.980223983 | CQ73: 0.9805919187 | CR73: 0.9809518805 | CS73: 0.9813063498 | CT73: 0.981653304 | CU73: 0.9819942822 | CV73: 0.9823287724 | CW73: 0.9826572605 | CX73: 0.9829792619
B74: Perfil moderado | C74: 0.03 | D74: 55 | E74: años | R74: Fecha actual | S74: =TODAY() -> 2018-01-30 | T74: Años enteros faltan | U74: Años faltan | V74: Factor actuarial | W74: Factor IRP | AA74: Edad legal efectiva | AB74: =MAX(AB71,AB69) -> 2047-01-01 | AC74: =IFERROR(ROUNDUP(YEARFRAC($AC$60,AB74)*12,0)/12,0) -> 67 | AD74: =INT(YEARFRAC($AC$61,AB74)*12)/12 -> 28.91666667 | AE74: no | AF74: 2046-03-01 | AG74: 66.16666667 | AH74: 28.08333333 | AK74: Necesidades básicas | AL74: =ROUND(VLOOKUP($R$5,$AK$51:$AO$70,3,0)*AR76/10,0)*10 -> 0 | AQ74: Ajuste por incremento salario real | AR74: =((1+C76)/(1+C77))^U75 -> 1.325991728 | AZ74: 84 | BA74: 0.9499969024 | BB74: 0.9508754036 | BC74: 0.9517393519 | BD74: 0.9525885108 | BE74: 0.9534237502 | BF74: 0.9542454219 | BG74: 0.9550524127 | BH74: 0.9558456324 | BI74: 0.9566254887 | BJ74: 0.9573919446 | BK74: 0.9581449118 | BL74: 0.9588848563 | BM74: 0.9596122499 | BN74: 0.9603265367 | BO74: 0.9610286572 | BP74: 0.9617186374 | BQ74: 0.9623964206 | BR74: 0.96306247 | BS74: 0.9637167629 | BT74: 0.964359306 | BU74: 0.964991574 | BV74: 0.9656115394 | BW74: 0.9662216857 | BX74: 0.9668200144 | BY74: 0.9674084961 | BZ74: 0.9679866288 | CA74: 0.9685544009 | CB74: 0.9691122916 | CC74: 0.9696603162 | CD74: 0.9701984399 | CE74: 0.9707271697 | CF74: 0.971246497 | CG74: 0.9717574205 | CH74: 0.9722584113 | CI74: 0.972750493 | CJ74: 0.9732346414 | CK74: 0.973709868 | CL74: 0.9741766346 | CM74: 0.9746349596 | CN74: 0.9750853527 | CO74: 0.9755282776 | CP74: 0.9759622542 | CQ74: 0.9763897837 | CR74: 0.9768088254 | CS74: 0.9772209198 | CT74: 0.9776255482 | CU74: 0.9780231995 | CV74: 0.9784133778 | CW74: 0.9787970871 | CX74: 0.9791738096
B75: Perfil agresivo | C75: 0.045 | D75: 45 | E75: años | R75: Fecha de jubilación | S75: =AC65 -> 2047-01-01 | T75: =YEAR(S75)-YEAR(S74) -> 29 | U75: =YEARFRAC(S74,S75,1) -> 28.92123757 | V75: =(1-$AG$26+INT($AG$26))*VLOOKUP(INT($AG$26),$V$5:W$24,2)+($AG$26-INT($AG$26))*VLOOKUP(INT($AG$26)+1,$V$5:W$24,2) -> 22.90636632 | W75: =(1-$AG$26+INT($AG$26))*VLOOKUP(INT($AG$26),$V$5:X$24,3)+($AG$26-INT($AG$26))*VLOOKUP(INT($AG$26)+1,$V$5:X$24,3) -> 18.65990628 | AE75: no | AF75: 2046-04-01 | AG75: 66.25 | AH75: 28.16666667 | AK75: Salud | AL75: =ROUND(VLOOKUP($R$5,$AK$51:$AO$70,4,0)*AR76/10,0)*10 -> 0 | AQ75: Ajuste por salario relativo | AR75: =(Ingresos/AR73)^0.5 -> 0 | AZ75: 85 | BA75: 0.9421610813 | BB75: 0.9431620492 | BC75: 0.9441439285 | BD75: 0.9451083739 | BE75: 0.946055525 | BF75: 0.9469860088 | BG75: 0.9478998877 | BH75: 0.9487972697 | BI75: 0.9496796997 | BJ75: 0.9505462366 | BK75: 0.9513974406 | BL75: 0.95223432 | BM75: 0.9530559431 | BN75: 0.9538633089 | BO75: 0.9546569848 | BP75: 0.9554364552 | BQ75: 0.9562022537 | BR75: 0.9569553955 | BS75: 0.9576954129 | BT75: 0.9584222953 | BU75: 0.9591365933 | BV75: 0.9598382681 | BW75: 0.9605288631 | BX75: 0.9612063724 | BY75: 0.9618728216 | BZ75: 0.9625277091 | CA75: 0.963171043 | CB75: 0.9638033402 | CC75: 0.9644250697 | CD75: 0.9650357755 | CE75: 0.9656359493 | CF75: 0.9662255965 | CG75: 0.9668057171 | CH75: 0.9673753207 | CI75: 0.9679348981 | CJ75: 0.9684854706 | CK75: 0.9690260248 | CL75: 0.969557581 | CM75: 0.9700796339 | CN75: 0.9705926739 | CO75: 0.9710977195 | CP75: 0.9715932501 | CQ75: 0.9720807916 | CR75: 0.9725598384 | CS75: 0.9730303928 | CT75: 0.9734929446 | CU75: 0.973948003 | CV75: 0.9743945751 | CW75: 0.9748336575 | CX75: 0.9752652517
B76: Crecimiento salarial | C76: =D76/10000 -> 0.03 | D76: 300 | S76: Años | T76: Meses | AB76: Edad mínima en meses | AC76: =AC73*12 -> 804 | AE76: no | AF76: 2046-05-01 | AG76: 66.33333333 | AH76: 28.25 | AK76: Ocio | AL76: =ROUND(VLOOKUP($R$5,$AK$51:$AO$70,5,0)*AR76/10,0)*10 -> 0 | AQ76: Ajuste total | AR76: =AR74*AR75 -> 0 | AZ76: 86 | BA76: 0.9329822655 | BB76: 0.9341036455 | BC76: 0.9352038068 | BD76: 0.9362846009 | BE76: 0.9373462977 | BF76: 0.9383891163 | BG76: 0.9394142321 | BH76: 0.9404208008 | BI76: 0.9414109382 | BJ76: 0.9423837578 | BK76: 0.9433393521 | BL76: 0.9442793118 | BM76: 0.9452026742 | BN76: 0.9461110106 | BO76: 0.947003381 | BP76: 0.9478808271 | BQ76: 0.9487433914 | BR76: 0.9495921054 | BS76: 0.9504260099 | BT76: 0.9512461291 | BU76: 0.9520514978 | BV76: 0.9528446058 | BW76: 0.9536240414 | BX76: 0.9543907457 | BY76: 0.9551442961 | BZ76: 0.9558851885 | CA76: 0.9566139178 | CB76: 0.9573300207 | CC76: 0.9580350176 | CD76: 0.9587278933 | CE76: 0.9594091738 | CF76: 0.9600788701 | CG76: 0.960737985 | CH76: 0.9613860144 | CI76: 0.9620230021 | CJ76: 0.9626499141 | CK76: 0.9632658005 | CL76: 0.9638721054 | CM76: 0.9644673991 | CN76: 0.965053638 | CO76: 0.9656298701 | CP76: 0.9661965801 | CQ76: 0.9667542526 | CR76: 0.9673024136 | CS76: 0.9678410681 | CT76: 0.9683716916 | CU76: 0.9688933297 | CV76: 0.9694059537 | CW76: 0.9699100798 | CX76: 0.9704057115
B77: IPC | C77: =D77/10000 -> 0.02 | D77: 200 | R77: Años cotizados a la jubilación | S77: =INT(AC66) -> 28 | T77: =(AC66-S77)*12 -> 11 | U77: Rentas | AE77: no | AF77: 2046-06-01 | AG77: 66.41666667 | AH77: 28.33333333 | AL77: =SUM(AL73:AL76) -> 0 | AZ77: 87 | BA77: 0.9223120662 | BB77: 0.9234975989 | BC77: 0.9246665015 | BD77: 0.9258202597 | BE77: 0.9269580035 | BF77: 0.9280799012 | BG77: 0.9291857297 | BH77: 0.9302752331 | BI77: 0.9313497547 | BJ77: 0.9324086156 | BK77: 0.9334511945 | BL77: 0.9344783795 | BM77: 0.9354905528 | BN77: 0.936488145 | BO77: 0.9374700671 | BP77: 0.9384377412 | BQ77: 0.939390616 | BR77: 0.9403291544 | BS77: 0.9412537566 | BT77: 0.9421639214 | BU77: 0.9430600589 | BV77: 0.9439436937 | BW77: 0.944812737 | BX77: 0.9456692071 | BY77: 0.9465125192 | BZ77: 0.9473426772 | CA77: 0.9481601754 | CB77: 0.9489649569 | CC77: 0.9497580093 | CD77: 0.950538822 | CE77: 0.9513073746 | CF77: 0.9520636481 | CG77: 0.9528091261 | CH77: 0.9535428113 | CI77: 0.9542651484 | CJ77: 0.9549766737 | CK77: 0.9556768228 | CL77: 0.9563666533 | CM77: 0.9570450822 | CN77: 0.9577141511 | CO77: 0.9583718246 | CP77: 0.959019596 | CQ77: 0.9596579758 | CR77: 0.9602859421 | CS77: 0.9609039778 | CT77: 0.961513115 | CU77: 0.9621123047 | CV77: 0.9627025523 | CW77: 0.9632833572 | CX77: 0.9638552055
B78: Crecimiento del gasto en la jubilación | C78: =D78/10000 -> 0.02 | D78: 200 | S78: € de la jubilación | T78: € actuales | U78: € de la jubilación | V78: € actuales | W78: € actuales neto | AE78: no | AF78: 2046-07-01 | AG78: 66.5 | AH78: 28.41666667 | AZ78: 88 | BA78: 0.911403094 | BB78: 0.9127320617 | BC78: 0.9140391359 | BD78: 0.9153265655 | BE78: 0.9165935305 | BF78: 0.917841168 | BG78: 0.9190690796 | BH78: 0.9202778778 | BI78: 0.9214691195 | BJ78: 0.9226419128 | BK78: 0.9237962834 | BL78: 0.9249332777 | BM78: 0.9260534539 | BN78: 0.927156369 | BO78: 0.9282425071 | BP78: 0.9293124426 | BQ78: 0.9303661712 | BR78: 0.9314037173 | BS78: 0.9324261263 | BT78: 0.9334328763 | BU78: 0.934424525 | BV78: 0.9354015706 | BW78: 0.9363635162 | BX78: 0.9373113694 | BY78: 0.9382451688 | BZ78: 0.9391644142 | CA78: 0.9400700837 | CB78: 0.9409617282 | CC78: 0.9418408339 | CD78: 0.942706899 | CE78: 0.9435594458 | CF78: 0.9443989659 | CG78: 0.9452269684 | CH78: 0.9460414707 | CI78: 0.9468444659 | CJ78: 0.9476354503 | CK78: 0.9484144509 | CL78: 0.9491819354 | CM78: 0.9499379301 | CN78: 0.9506829461 | CO78: 0.9514159713 | CP78: 0.9521385103 | CQ78: 0.9528510527 | CR78: 0.9535521209 | CS78: 0.9542427112 | CT78: 0.9549233131 | CU78: 0.9555934418 | CV78: 0.9562536059 | CW78: 0.9569042757 | CX78: 0.9575449845
B79: Revalorización de las pensiones | C79: =D79/10000 -> 0.0025 | D79: 25 | R79: Ingresos anuales previos a la jubilación | U79: =FV(C76,U75,0,-C10) -> 0 | V79: =U79*(1+$C$77)^(-U75) -> 0 | W79: =S122 ->  | AE79: no | AF79: 2046-08-01 | AG79: 66.58333333 | AH79: 28.5 | AZ79: 89 | BA79: 0.8979575885 | BB79: 0.899381549 | BC79: 0.9007863405 | BD79: 0.9021718986 | BE79: 0.9035385755 | BF79: 0.9048863428 | BG79: 0.9062156219 | BH79: 0.9075263644 | BI79: 0.9088195672 | BJ79: 0.9100946365 | BK79: 0.9113515798 | BL79: 0.9125918506 | BM79: 0.9138144618 | BN79: 0.9150198366 | BO79: 0.9162089927 | BP79: 0.9173813947 | BQ79: 0.9185375447 | BR79: 0.9196779113 | BS79: 0.9208019984 | BT79: 0.9219107941 | BU79: 0.9230037705 | BV79: 0.9240814341 | BW79: 0.9251442595 | BX79: 0.9261922697 | BY79: 0.9272259094 | BZ79: 0.9282446869 | CA79: 0.9292496262 | CB79: 0.9302401746 | CC79: 0.9312168712 | CD79: 0.932180195 | CE79: 0.9331301116 | CF79: 0.9340666447 | CG79: 0.9349903033 | CH79: 0.9359005401 | CI79: 0.9367983796 | CJ79: 0.9376838171 | CK79: 0.9385563343 | CL79: 0.9394174426 | CM79: 0.9402661366 | CN79: 0.9411029003 | CO79: 0.9419277307 | CP79: 0.9427411375 | CQ79: 0.9435441191 | CR79: 0.9443351576 | CS79: 0.945114763 | CT79: 0.9458839338 | CU79: 0.9466421549 | CV79: 0.9473894236 | CW79: 0.948126762 | CX79: 0.9488531429
AE80: no | AF80: 2046-09-01 | AG80: 66.66666667 | AH80: 28.58333333 | AZ80: 90 | BA80: 0.8840311281 | BB80: 0.8855280431 | BC80: 0.887007964 | BD80: 0.8884708377 | BE80: 0.8899168307 | BF80: 0.891345584 | BG80: 0.8927573538 | BH80: 0.894151436 | BI80: 0.8955286101 | BJ80: 0.8968892369 | BK80: 0.8982326612 | BL80: 0.8995593152 | BM80: 0.9008690293 | BN80: 0.9021622619 | BO80: 0.9034399045 | BP80: 0.9047009116 | BQ80: 0.9059457048 | BR80: 0.9071752302 | BS80: 0.908388431 | BT80: 0.9095862636 | BU80: 0.9107686848 | BV80: 0.9119356549 | BW80: 0.9130881422 | BX80: 0.9142255989 | BY80: 0.9153485329 | BZ80: 0.9164568909 | CA80: 0.9175511381 | CB80: 0.9186312725 | CC80: 0.9196967571 | CD80: 0.9207485761 | CE80: 0.9217877154 | CF80: 0.9228126574 | CG80: 0.9238243707 | CH80: 0.924822858 | CI80: 0.9258085972 | CJ80: 0.9267810792 | CK80: 0.927741279 | CL80: 0.9286892007 | CM80: 0.92962432 | CN80: 0.9305476318 | CO80: 0.9314586291 | CP80: 0.9323582933 | CQ80: 0.9332461322 | CR80: 0.9341221215 | CS80: 0.9349867494 | CT80: 0.9358400201 | CU80: 0.9366819247 | CV80: 0.9375134506 | CW80: 0.9383335944 | CX80: 0.9391428466
AE81: no | AF81: 2046-10-01 | AG81: 66.75 | AH81: 28.66666667 | AZ81: 91 | BA81: 0.8690847533 | BB81: 0.8707121853 | BC81: 0.8723194605 | BD81: 0.8739062134 | BE81: 0.8754733952 | BF81: 0.8770215475 | BG81: 0.8785497251 | BH81: 0.8800588735 | BI81: 0.8815490716 | BJ81: 0.8830208107 | BK81: 0.8844745827 | BL81: 0.8859098817 | BM81: 0.8873272556 | BN81: 0.8887266805 | BO81: 0.8901096708 | BP81: 0.8914747193 | BQ81: 0.8928228274 | BR81: 0.8941545084 | BS81: 0.895468765 | BT81: 0.8967675731 | BU81: 0.8980494689 | BV81: 0.8993159191 | BW81: 0.9005664554 | BX81: 0.9018020564 | BY81: 0.9030217244 | BZ81: 0.9042259676 | CA81: 0.9054157838 | CB81: 0.9065906652 | CC81: 0.907750612 | CD81: 0.9088966228 | CE81: 0.9100282184 | CF81: 0.9111458633 | CG81: 0.9122495835 | CH81: 0.9133393653 | CI81: 0.9144157133 | CJ81: 0.9154781219 | CK81: 0.9165280936 | CL81: 0.9175651233 | CM81: 0.9185887154 | CN81: 0.9195998675 | CO81: 0.9205985711 | CP81: 0.9215848399 | CQ81: 0.9225586588 | CR81: 0.9235205303 | CS81: 0.9244704589 | CT81: 0.9254089355 | CU81: 0.9263349652 | CV81: 0.9272500469 | CW81: 0.9281536749 | CX81: 0.9290458516
R82: Pensión bruta pública probable | S82: =U82*$W$75 ->  | T82: =S82*(1+$C$77)^(-$U$75) ->  | U82: =IF(R10=TRUE,AC132,AC130) ->  | V82: =U82*(1+$C$77)^(-$U$75) ->  | AE82: no | AF82: 2046-11-01 | AG82: 66.83333333 | AH82: 28.75 | AZ82: 92 | BA82: 0.8541056652 | BB82: 0.8558662081 | BC82: 0.8576041826 | BD82: 0.8593184328 | BE82: 0.8610113174 | BF82: 0.8626826228 | BG82: 0.8643320006 | BH82: 0.8659611852 | BI82: 0.8675692906 | BJ82: 0.8691579148 | BK82: 0.870726255 | BL82: 0.872275834 | BM82: 0.8738057416 | BN82: 0.875317043 | BO82: 0.876809838 | BP82: 0.8782841455 | BQ82: 0.8797410083 | BR82: 0.8811795123 | BS82: 0.8826001426 | BT82: 0.8840044734 | BU82: 0.8853909996 | BV82: 0.8867612866 | BW82: 0.888114337 | BX82: 0.8894516786 | BY82: 0.8907728227 | BZ82: 0.8920773077 | CA82: 0.8933666266 | CB82: 0.8946398309 | CC82: 0.8958983849 | CD82: 0.8971418457 | CE82: 0.8983692092 | CF82: 0.8995829803 | CG82: 0.9007816705 | CH82: 0.9019657982 | CI82: 0.9031358583 | CJ82: 0.9042918607 | CK82: 0.9054338346 | CL82: 0.9065627593 | CM82: 0.9076771646 | CN82: 0.9087785357 | CO82: 0.9098673847 | CP82: 0.9109422212 | CQ82: 0.9120045476 | CR82: 0.9130543689 | CS82: 0.9140911866 | CT82: 0.9151160127 | CU82: 0.9161283332 | CV82: 0.9171281676 | CW82: 0.9181170005 | CX82: 0.9190933554
R83: Pensión neta | S83: =U83*$W$75 ->  | T83: =S83*(1+$C$77)^(-$U$75) ->  | U83: =V83*(1+$C$77)^$U$75 ->  | V83: =+R122 ->  | AE83: no | AF83: 2046-12-01 | AG83: 66.91666667 | AH83: 28.83333333 | AZ83: 93 | BA83: 0.8369295349 | BB83: 0.8387878703 | BC83: 0.8406271488 | BD83: 0.8424469875 | BE83: 0.8442480776 | BF83: 0.8460296448 | BG83: 0.8477920075 | BH83: 0.849535467 | BI83: 0.8512594018 | BJ83: 0.8529652067 | BK83: 0.8546512046 | BL83: 0.8563188677 | BM83: 0.8579680672 | BN83: 0.8595992511 | BO83: 0.8612118324 | BP83: 0.862806273 | BQ83: 0.8643835191 | BR83: 0.8659420027 | BS83: 0.8674836805 | BT83: 0.8690080322 | BU83: 0.8705150206 | BV83: 0.8720046114 | BW83: 0.8734777384 | BX83: 0.8749339256 | BY83: 0.8763741119 | BZ83: 0.8777972721 | CA83: 0.8792049009 | CB83: 0.8805959438 | CC83: 0.8819719293 | CD83: 0.8833318058 | CE83: 0.8846760416 | CF83: 0.8860051646 | CG83: 0.8873191293 | CH83: 0.888617921 | CI83: 0.8899020397 | CJ83: 0.891171471 | CK83: 0.8924261763 | CL83: 0.8936671708 | CM83: 0.8948934163 | CN83: 0.8961059282 | CO83: 0.8973046951 | CP83: 0.898489684 | CQ83: 0.8996609078 | CR83: 0.9008188472 | CS83: 0.9019630022 | CT83: 0.9030943464 | CU83: 0.9042128917 | CV83: 0.9053186109 | CW83: 0.9064120259 | CX83: 0.9074926002
R84: Gastos deseados iniciales | S84: =U84*$V$75 -> 0 | T84: =S84*(1+$C$77)^(-$U$75) -> 0 | U84: =V84*(1+$C$77)^$U$75 -> 0 | V84: =C37*12 -> 0 | AE84: si | AF84: 2047-01-01 | AG84: 67 | AH84: 28.91666667 | AZ84: 94 | BA84: 0.8207083585 | BB84: 0.8227161927 | BC84: 0.824706564 | BD84: 0.8266785649 | BE84: 0.8286319971 | BF84: 0.8305667443 | BG84: 0.8324818431 | BH84: 0.8343783647 | BI84: 0.8362554408 | BJ84: 0.8381128242 | BK84: 0.8399512193 | BL84: 0.8417699273 | BM84: 0.8435692772 | BN84: 0.8453495793 | BO84: 0.8471106825 | BP84: 0.8488529361 | BQ84: 0.8505762568 | BR84: 0.8522809843 | BS84: 0.8539670907 | BT84: 0.8556349368 | BU84: 0.8572839554 | BV84: 0.8589145591 | BW84: 0.8605277155 | BX84: 0.8621228147 | BY84: 0.8637003444 | BZ84: 0.8652597325 | CA84: 0.8668024255 | CB84: 0.8683278867 | CC84: 0.8698365638 | CD84: 0.8713279246 | CE84: 0.8728029374 | CF84: 0.8742610521 | CG84: 0.8757027491 | CH84: 0.8771284907 | CI84: 0.8785377527 | CJ84: 0.8799314973 | CK84: 0.8813092194 | CL84: 0.8826718851 | CM84: 0.8840189737 | CN84: 0.8853509595 | CO84: 0.8866678213 | CP84: 0.8879700491 | CQ84: 0.8892571128 | CR84: 0.8905295034 | CS84: 0.891787193 | CT84: 0.8930311838 | CU84: 0.8942609502 | CV84: 0.8954769851 | CW84: 0.8966787649 | CX84: 0.8978672851
S85: Primero | T85: Segundo | U85: Tercero | AZ85: 95 | BA85: 0.8063815613 | BB85: 0.8087548397 | BC85: 0.8110952835 | BD85: 0.8134036858 | BE85: 0.8156806748 | BF85: 0.817927749 | BG85: 0.8201452706 | BH85: 0.8223341545 | BI85: 0.8244951555 | BJ85: 0.8266279939 | BK85: 0.8287348596 | BL85: 0.830814462 | BM85: 0.8328674258 | BN85: 0.8348953504 | BO85: 0.8368973995 | BP85: 0.8388751406 | BQ85: 0.8408276699 | BR85: 0.8427570491 | BS85: 0.8446618423 | BT85: 0.8465436169 | BU85: 0.8484014359 | BV85: 0.8502368204 | BW85: 0.8520498159 | BX85: 0.8538409732 | BY85: 0.8556098185 | BZ85: 0.8573563852 | CA85: 0.8590822036 | CB85: 0.8607867919 | CC85: 0.8624711666 | CD85: 0.8641348437 | CE85: 0.865777867 | CF85: 0.8674007396 | CG85: 0.8690039649 | CH85: 0.8705880651 | CI85: 0.8721525505 | CJ85: 0.8736984436 | CK85: 0.8752252365 | CL85: 0.8767334607 | CM85: 0.8782236001 | CN85: 0.8796951908 | CO85: 0.8811497087 | CP85: 0.8825861846 | CQ85: 0.8840051164 | CR85: 0.885406512 | CS85: 0.8867913699 | CT85: 0.8881592056 | CU85: 0.8895110081 | CV85: 0.8908458002 | CW85: 0.8921645717 | CX85: 0.8934678267
R86: Años en cada tramo de ahorro | S86: =MAX(0,W59-YEARFRAC(AC60,S74,1)) -> 6.91990172 | T86: =MAX(0,X59-YEARFRAC(AC60,S74,1))-S86 -> 10 | U86: =YEARFRAC(S74,S75,1)-S86-T86 -> 12.00133585 | V86: Con capital inicial | AZ86: 96 | BA86: 0.7876429232 | BB86: 0.7903978966 | BC86: 0.7931148833 | BD86: 0.7957952371 | BE86: 0.7984392943 | BF86: 0.8010483179 | BG86: 0.803623052 | BH86: 0.8061631401 | BI86: 0.8086701881 | BJ86: 0.8111438472 | BK86: 0.8135857376 | BL86: 0.8159953554 | BM86: 0.818373298 | BN86: 0.8207211448 | BO86: 0.8230374232 | BP86: 0.8253241666 | BQ86: 0.8275808871 | BR86: 0.8298086617 | BS86: 0.8320074654 | BT86: 0.8341783172 | BU86: 0.8363202403 | BV86: 0.8384347678 | BW86: 0.8405219119 | BX86: 0.8425821592 | BY86: 0.8446159966 | BZ86: 0.8466229558 | CA86: 0.8486045179 | CB86: 0.8505602107 | CC86: 0.8524910346 | CD86: 0.8543969927 | CE86: 0.8562775707 | CF86: 0.8581342489 | CG86: 0.8599670646 | CH86: 0.8617764996 | CI86: 0.8635625548 | CJ86: 0.8653252305 | CK86: 0.8670655234 | CL86: 0.8687829199 | CM86: 0.8704784458 | CN86: 0.8721515588 | CO86: 0.8738037955 | CP86: 0.8754346157 | CQ86: 0.8770440451 | CR86: 0.8786330543 | CS86: 0.8802016671 | CT86: 0.8817493712 | CU86: 0.8832776718 | CV86: 0.884786036 | CW86: 0.8862749938 | CX86: 0.887745031
R87: Proceso de formación del capital | S87: =IF(V$60=$C$21,S$86*(1+V$60)^(S$86-1),((1+V$60)^S$86-(1+$C$21)^S$86)/(V$60-$C$21))*(V$60*(1+V$60)^(1/12))/S$101 -> 8.104293731 | T87: =S87*(1+W$60)^T$86+(1+$C$21)^S$86*IF(W$60=$C$21,T$86*(1+W$60)^(T$86-1),((1+W$60)^T$86-(1+$C$21)^T$86)/(W$60-$C$21))*(W$60*(1+W$60)^(1/12))/T$101 -> 22.54081919 | U87: =T87*(1+X$60)^U$86+(1+$C$21)^(S$86+T$86)*IF(X$60=$C$21,U$86*(1+X$60)^(U$86-1),((1+X$60)^U$86-(1+$C$21)^U$86)/(X$60-$C$21))*(X$60*(1+X$60)^(1/12))/U$101 -> 40.09927746 | V87: =$C$20*U87+$C$22*(1+V$60)^S$86*(1+W$60)^T$86*(1+X$60)^U$86 -> 0 | AZ87: 97 | BA87: 0.7720976554 | BB87: 0.7754288435 | BC87: 0.7787000808 | BD87: 0.7819159223 | BE87: 0.7850771338 | BF87: 0.7881869743 | BG87: 0.7912460966 | BH87: 0.7942563343 | BI87: 0.7972195294 | BJ87: 0.8001367151 | BK87: 0.8030080674 | BL87: 0.8058359733 | BM87: 0.8086208486 | BN87: 0.811364047 | BO87: 0.8140653549 | BP87: 0.8167265753 | BQ87: 0.8193479556 | BR87: 0.8219301775 | BS87: 0.8244744296 | BT87: 0.8269814171 | BU87: 0.8294512336 | BV87: 0.8318850147 | BW87: 0.8342824287 | BX87: 0.8366450478 | BY87: 0.8389735066 | BZ87: 0.8412678432 | CA87: 0.8435291988 | CB87: 0.8457575976 | CC87: 0.8479536412 | CD87: 0.850117867 | CE87: 0.8522503418 | CF87: 0.8543526379 | CG87: 0.8564242902 | CH87: 0.8584663407 | CI87: 0.8604788388 | CJ87: 0.8624618309 | CK87: 0.8644168174 | CL87: 0.8663438397 | CM87: 0.8682424671 | CN87: 0.8701141928 | CO87: 0.8719590513 | CP87: 0.8737775915 | CQ87: 0.8755697974 | CR87: 0.8773367308 | CS87: 0.8790779019 | CT87: 0.8807942803 | CU87: 0.8824859349 | CV87: 0.8841538754 | CW87: 0.8857976093 | CX87: 0.887417672
AZ88: 98 | BA88: 0.7545351137 | BB88: 0.7581874768 | BC88: 0.761788501 | BD88: 0.7653391944 | BE88: 0.7688393361 | BF88: 0.7722901342 | BG88: 0.7756906917 | BH88: 0.7790431635 | BI88: 0.7823468282 | BJ88: 0.7856029948 | BK88: 0.7888112999 | BL88: 0.7919731825 | BM88: 0.7950889404 | BN88: 0.7981594271 | BO88: 0.8011849719 | BP88: 0.8041659904 | BQ88: 0.8071028336 | BR88: 0.8099968659 | BS88: 0.8128480629 | BT88: 0.8156572673 | BU88: 0.8184254001 | BV88: 0.8211524518 | BW88: 0.8238387494 | BX88: 0.8264857647 | BY88: 0.8290929639 | BZ88: 0.8316622299 | CA88: 0.834193036 | CB88: 0.8366863322 | CC88: 0.8391425389 | CD88: 0.8415626133 | CE88: 0.84394651 | CF88: 0.8462947171 | CG88: 0.8486081402 | CH88: 0.8508872719 | CI88: 0.8531320746 | CJ88: 0.8553429875 | CK88: 0.8575219892 | CL88: 0.8596680946 | CM88: 0.8617816955 | CN88: 0.8638642988 | CO88: 0.8659153984 | CP88: 0.8679359227 | CQ88: 0.8699263747 | CR88: 0.8718872087 | CS88: 0.8738179218 | CT88: 0.8757205048 | CU88: 0.8775944089 | CV88: 0.8794401397 | CW88: 0.8812581578 | CX88: 0.8830489259
R89: Ahorro preexistente para la jubilación | S89: =V87 -> 0 | T89: =S89*(1+$C$77)^(-$U$75) -> 0 | U89: =S89/W75 -> 0 | V89: =U89*(1+$C$77)^(-$U$75) -> 0 | W89: Pérdida pode adquisitivo | AZ89: 99 | BA89: 0.7383789175 | BB89: 0.7426357665 | BC89: 0.7468211735 | BD89: 0.7509365826 | BE89: 0.7549840416 | BF89: 0.7589652335 | BG89: 0.7628804152 | BH89: 0.7667318701 | BI89: 0.7705196722 | BJ89: 0.7742458636 | BK89: 0.777911631 | BL89: 0.7815170576 | BM89: 0.7850641265 | BN89: 0.7885538922 | BO89: 0.7919864757 | BP89: 0.7953632942 | BQ89: 0.798685376 | BR89: 0.8019538146 | BS89: 0.8051685537 | BT89: 0.8083316036 | BU89: 0.8114439727 | BV89: 0.8145051347 | BW89: 0.8175166258 | BX89: 0.8204799132 | BY89: 0.8233939994 | BZ89: 0.8262618804 | CA89: 0.8290830243 | CB89: 0.8318584289 | CC89: 0.8345886202 | CD89: 0.8372750631 | CE89: 0.8399177535 | CF89: 0.8425171586 | CG89: 0.8450748006 | CH89: 0.8475911468 | CI89: 0.8500666663 | CJ89: 0.8525014066 | CK89: 0.8548978346 | CL89: 0.8572544212 | CM89: 0.8595731611 | CN89: 0.8618540971 | CO89: 0.8640981292 | CP89: 0.8663058232 | CQ89: 0.8684776508 | CR89: 0.8706146068 | CS89: 0.8727161655 | CT89: 0.8747843227 | CU89: 0.8768185955 | CV89: 0.8788194591 | CW89: 0.8807883897 | CX89: 0.8827254237
R90: Ahorro neto para complemento inicial | S90: =S89*(1-$R$115) ->  | T90: =S90*(1+$C$77)^(-$U$75) ->  | U90: =U89*(1-$R$115) ->  | V90: =V89*(1-$R$115) ->  | AZ90: 100 | BA90: 1.979517962 | BB90: 1.988250069 | BC90: 1.996702222 | BD90: 2.004898863 | BE90: 2.012857246 | BF90: 2.020595944 | BG90: 2.028126707 | BH90: 2.035460936 | BI90: 2.042608582 | BJ90: 2.049581349 | BK90: 2.056385615 | BL90: 2.063027007 | BM90: 2.06951485 | BN90: 2.075855026 | BO90: 2.082050099 | BP90: 2.088107986 | BQ90: 2.094033386 | BR90: 2.099829294 | BS90: 2.105499878 | BT90: 2.111050489 | BU90: 2.116484858 | BV90: 2.121805141 | BW90: 2.127014745 | BX90: 2.132118326 | BY90: 2.137116233 | BZ90: 2.142014261 | CA90: 2.146813931 | CB90: 2.151518052 | CC90: 2.156127974 | CD90: 2.160647714 | CE90: 2.165078468 | CF90: 2.169422735 | CG90: 2.173682949 | CH90: 2.17786148 | CI90: 2.181960642 | CJ90: 2.185979993 | CK90: 2.189924454 | CL90: 2.193793497 | CM90: 2.197590595 | CN90: 2.201315152 | CO90: 2.204971899 | CP90: 2.20856017 | CQ90: 2.212081949 | CR90: 2.215539184 | CS90: 2.218932464 | CT90: 2.222265005 | CU90: 2.22553602 | CV90: 2.22874735 | CW90: 2.231902123 | CX90: 2.234999492
R92: Pensión + rentas del ahorro (neto) | U92: =V92*(1+$C$77)^$U$75 ->  | V92: =V83+V90 ->  | Z92: DETERMINACIÓN DE LA PENSIÓN PÚBLICA | AF92: DATOS GRÁFICO | AM92: BASE REGULADORA
R93: Ingreso anual adicional necesario | U93: =MAX(0,U84-U92) ->  | V93: =MAX(0,V84-V92) ->  | W93: =S84-S83-S90-S97 ->  | X93: =W93*(1+$C$77)^(-$U$75) ->  | AN93: 25 | AO93: 24 | AP93: 23 | AQ93: 22 | AR93: 21 | AS93: 20 | AT93: 19
R94: Fondo privado que es necesario constituir | S94: =S97/(1-$R$115) ->  | T94: =T95/(1-$R$115) ->  | Z94: Situación aplicable | AA94: =AD48 -> 0 | AF94: Año | AG94: Pensión pública probable | AH94: Rentas del ahorro privado | AI94: Gastos previstos | AJ94: Diferencia | AK94: Necesidad de ingresos adicionales | AM94: Suma | AN94: =SUM($AO99:$AO398) -> 0 | AO94: =SUM($AO99:$AO386) -> 0 | AP94: =SUM($AO99:$AO374) -> 0 | AQ94: =SUM($AO99:$AO362) -> 0 | AR94: =SUM($AO99:$AO350) -> 0 | AS94: =SUM($AO99:$AO338) -> 0 | AT94: =SUM($AO99:$AO326) -> 0
R95: Neto | T95: =V93*$W$75 ->  | Z95: Tramo Nº hijos | AA95: =HLOOKUP(D5,Z96:AD97,2,0) -> 2 | AF95: =+C28+1 -> 68 | AG95: =+V83 ->  | AH95: =+V90 ->  | AI95: =+H7 ->  | AJ95: =AI95-AH95-AG95 ->  | AK95: =MAX(0,AI95-AG95-AH95) ->  | AM95: Base reguladora normativa | AN95: =HLOOKUP(AB35,AN93:AT94,2,0)/(14*AB35) -> 0 | AO95: Actual
R96: Aportación anual necesaria creciente para constituirlo | T96: =S94/U87 ->  | X96: =W93/U87/(1-$R$115) ->  | Z96: Ninguno | AA96: Uno | AB96: Dos | AC96: Tres | AD96: Cuatro o más | AF96: =AF95+1 -> 69 | AG96: =AG95*(1+$C$79) ->  | AH96: =AH95*(1+$C$79) ->  | AI96: =AI95*(1+$C$78) ->  | AJ96: =AI96-AH96-AG96 ->  | AK96: =MAX(0,AI96-AG96-AH96) ->  | AM96: Base anual | AN96: =IF(Año=0,0,HLOOKUP(AB35,AN93:AT94,2,0)/AB35) -> 0 | AO96: =AN96*(1+C77)^(-U75) -> 0 | AP96: Meses cotizados | AQ96: idem+48
R97: Aumento del ahorro preexistente. Neto | S97: =U93*$W$75 ->  | T97: =MAX($S$97,0)/((1+V60)^S86*(1+W60)^T86*(1+X60)^ U86) ->  | V97: Neto necesario | W97: =W93 ->  | X97: =MAX($W$93,0)/((1+V60)^S86*(1+W60)^T86*(1+X60)^U86) ->  | Y97: Tramo Nº hijos | Z97: 0 | AA97: 1 | AB97: 2 | AC97: 3 | AD97: 4 | AF97: =AF96+1 -> 70 | AJ97: =AI97-AH97-AG97 ->  | AK97: =MAX(0,AI97-AG97-AH97) ->  | AM97: =S75 -> 2047-01-01 | AN97: =IF(AND(AP97>=0,AQ97>=0),IF($R$6=TRUE,MIN(Ingresos/12,$R$15),MIN(Base,$R$15)),IF($R$6=TRUE,IF(AQ97>=0,$R$14,0.5*$R$14),0))*(1+$C$76)^(YEAR(AM97)-YEAR($S$74)) -> 0 | AO97: 0 | AP97: =AC66*12+1 -> 348 | AQ97: =AP97+48 -> 396
R98: % tributa | S98: =VLOOKUP(MAX(65,$AD$65),$P$128:$Q$133,2) -> 0.2 | V98: % tributa | W98: =VLOOKUP(MAX(65,$AD$65),$P$128:$Q$133,2) -> 0.2 | Y98: Porcentaje por hijos | Z98: 0 | AA98: 0 | AB98: 0.05 | AC98: 0.1 | AD98: 0.15 | AF98: 71 | AM98: =EDATE(AM97,-1) -> 2046-12-01 | AN98: =IF(AND(AP98>=0,AQ98>=0),IF($R$6=TRUE,MIN(Ingresos/12,$R$15),MIN(Base,$R$15)),IF($R$6=TRUE,IF(AQ98>=0,$R$14,0.5*$R$14),0))*(1+$C$76)^(YEAR(AM98)-YEAR($S$74)) -> 0 | AO98: 0 | AP98: =AP97-1 -> 347 | AQ98: =AP98+48 -> 395
R99: Bruto | S99: =S97/(1-S98*$T$128) ->  | T99: =S97/((1-S98*$T$128)*(1+V101*(1-$T$128))) ->  | V99: Bruto | W99: =W97/(1-W98*$T$128) ->  | X99: =W97/((1-W98*$T$128)*(1+V101*(1-$T$128))) ->  | AF99: 72 | AM99: =EDATE(AM98,-1) -> 2046-11-01 | AN99: 0 | AO99: =AN99 -> 0 | AP99: =AP98-1 -> 346 | AQ99: 394
AC100: € año jubilación | AF100: 73 | AM100: 2046-10-01 | AN100: 0 | AO100: =AN100 -> 0 | AP100: 345 | AQ100: 393
R101: Interés nominal | S101: =NOMINAL(V60,12) -> 0.04409771281 | T101: =NOMINAL(W60,12) -> 0.02959523727 | U101: =NOMINAL(X60,12) -> 0.0148978526 | V101: =+(1+$V$60)^$S$86*(1+$W$60)^$T$86*(1+$X$60)^$U$86-1 -> 1.178995046 | AB101: Base reg. | AC101: =AN96 -> 0 | AF101: 74 | AM101: 2046-09-01 | AN101: 0 | AO101: 0 | AP101: 344 | AQ101: 392
P102: Fuente: | Q102: http://www.irpf.eu/2016.html | AB102: TS Base | AC102: =0.5+MIN(AE35,AG31)*AF35+MAX(0,MIN(AG31,AG35)-AE35)*AH35 -> 0.8173 | AF102: 75 | AM102: 2046-08-01 | AN102: 0 | AO102: 0 | AP102: 343 | AQ102: 391
P103: TARIFA IRPF 2016 | AB103: Reductor | AC103: =AD53*AG28 -> 0 | AF103: 76 | AM103: 2046-07-01 | AN103: 0 | AO103: 0 | AP103: 342 | AQ103: 390
R104: Pensión | S104: Último sal. | AB104: Sostenibilidad | AC104: =VLOOKUP(MAX(AG24,2018),Q22:R64,2) -> 0.9065 | AF104: 77 | AM104: 2046-06-01 | AN104: 0 | AO104: 0 | AP104: 341 | AQ104: 389
P105: Ingresos brutos | R105: =V82 ->  | S105: =V79 -> 0 | T105: TABLA TRAMOS IRPF | AB105: Tasa antes incentivo | AC105: =AC102*(1-AC103)*AC104 -> 0.74088245 | AF105: 78 | AM105: 2046-05-01 | AN105: 0 | AO105: 0 | AP105: 340 | AQ105: 388
T106: de | U106: a | V106: Cuota | W106: Tipo marginal | AB106: Incentivo | AC106: =AD55*AG27 -> 0 | AF106: 79 | AM106: 2046-04-01 | AN106: 0 | AO106: 0 | AP106: 339 | AQ106: 387
P107: TOTAL Ingresos | R107: =SUM(R105:R106) ->  | S107: =SUM(S105:S106) -> 0 | T107: 0 | U107: 12450 | V107: 0 | W107: 0.19 | AB107: Tasa aplicable | AC107: =AC106+AC105 -> 0.74088245 | AF107: 80 | AM107: 2046-03-01 | AN107: 0 | AO107: 0 | AP107: 338 | AQ107: 386
T108: 12450 | U108: 20200 | V108: =T108*W107 -> 2365.5 | W108: 0.24 | AB108: Mínima | AC108: =+R16*14*(1+C79)^T75 -> 9131.64644 | AF108: 81 | AM108: 2046-02-01 | AN108: 0 | AO108: 0 | AP108: 337 | AQ108: 385
P109: MINIMO PERSONAL | R109: =U115+IF(R9/12>=65,U116,0) -> 6700 | S109: =U115+IF((R9-12)/12>=65,U116,0) -> 5550 | T109: 20200 | U109: 35200 | V109: =V108+(U108-T108)*W108 -> 4225.5 | W109: 0.3 | AB109: Complemento por hijos | AC109: =IF(S4=TRUE,HLOOKUP(AA95,Z97:AD98,2),0) -> 0 | AF109: 82 | AM109: 2046-01-01 | AN109: 0 | AO109: 0 | AP109: 336 | AQ109: 384
P110: GENERAL + RTOS TRABAJO | R110: =V120+IF(R105*(1-R111)<$T$118,$U$118,IF(R105*(1-R111)>$T$119,0,$U$118-$U$119*(R105*(1-R111)-$T$118))) ->  | S110: =W120+IF(S105*(1-S111)<$T$118,$U$118,IF(S105*(1-S111)>$T$119,0,$U$118-$U$119*(S105*(1-S111)-$T$118))) -> 5700 | T110: 35200 | U110: 60000 | V110: =V109+(U109-T109)*W109 -> 8725.5 | W110: 0.37 | AB110: Pensión sin complemento ni incentivos (sin límites) | AC110: =AC105*AC101 -> 0 | AF110: 83 | AM110: 2045-12-01 | AN110: 0 | AO110: 0 | AP110: 335 | AQ110: 383
P111: Cotización SS | R111: =V121 -> 0 | S111: =W121 -> 0.0635 | T111: 60000 | V111: =V110+(U110-T110)*W110 -> 17901.5 | W111: 0.45 | AB111: Pensión con incentivo y sin complemento | AC111: =AC107*AC101 -> 0 | AF111: 84 | AM111: 2045-11-01 | AN111: 0 | AO111: 0 | AP111: 334 | AQ111: 382
P112: TOTAL DEDUCCIONES | R112: =R110+R111*IF($R$6=TRUE,MAX($R$14*12,MIN($R$15*12,R105)),FV($C$76,$U$75,0,-Base*12)*(1+$C$77)^(-$U$75)) ->  | S112: =S110+S111*IF($R$6=TRUE,MAX($R$14*12,MIN($R$15*12,S105)),FV($C$76,$U$75,0,-Base*12)*(1+$C$77)^(-$U$75)) -> 6354.2532 | AB112: Pensión con incentivo y complemento | AC112: =AC111*(1+AC109) -> 0 | AF112: 85 | AM112: 2045-10-01 | AN112: 0 | AO112: 0 | AP112: 333 | AQ112: 381
P113: BASE IRPF | R113: =R107-R112 ->  | S113: =S107-S112 -> -6354.2532 | T113: Datos cálculo de la retención | AB113: Pensión hombre (si no llega a la mínima) | AC113: =IF(AND(AC111<AC108,R4=TRUE)=TRUE,AC108,0) -> 9131.64644 | AF113: 86 | AM113: 2045-09-01 | AN113: 0 | AO113: 0 | AP113: 332 | AQ113: 380
T114: Mínimo personal | AB114: Pensión mujer (si no llega a la mínima) | AC114: =IF(AND(S4=TRUE,AC111<AC108)=TRUE,AC108+AC111*AC109,0) -> 0 | AF114: 87 | AM114: 2045-08-01 | AN114: 0 | AO114: 0 | AP114: 331 | AQ114: 379
P115: TIPO marginal IRPF | R115: =VLOOKUP($R$113,$T$107:$W$111,4) ->  | S115: =VLOOKUP(S113,$T$107:$W$111,4) ->  | T115: Base | U115: 5550 | AB115: Máxima normal (en su caso anticipada) | AC115: =R17*14*(1+C79)^T75*IF(AA94<>1,1,(1-AG28*0.005)) -> 38834.40733 | AF115: 88 | AM115: 2045-07-01 | AN115: 0 | AO115: 0 | AP115: 330 | AQ115: 378
P116: Tramo inferior | R116: =VLOOKUP($R$113,$T$107:$W$111,1) ->  | S116: =VLOOKUP(S113,$T$107:$W$111,1) ->  | T116: Adicional 65+ | U116: 1150 | AB116: Base máxima | AC116: =+R15*12*(1+C76)^T75 -> 106079.3823 | AF116: 89 | AM116: 2045-06-01 | AN116: 0 | AO116: 0 | AP116: 329 | AQ116: 377
P117: Resto | R117: =R113-R116 ->  | S117: =S113-S116 ->  | T117: Por rendimiento del trabajo | AB117: Pensión hombre (si no llega a la máxima) | AC117: =IF(AND(R4=TRUE,AC111<AC115,AC113=0)=TRUE,AC111,0) -> 0 | AF117: 90 | AM117: 2045-05-01 | AN117: 0 | AO117: 0 | AP117: 328 | AQ117: 376
P118: Cuota tramo inferior | R118: =VLOOKUP($R$113,$T$107:$W$111,3) ->  | S118: =VLOOKUP(S113,$T$107:$W$111,3) ->  | T118: 11250 | U118: 3700 | AB118: Porcentaje pendiente de utilizar | AC118: =ROUNDUP(MIN((AC106-AC115/AC110+1),AC106)*100,0)/100 ->  | AF118: =AF117+1 -> 91 | AJ118: =AI118-AH118-AG118 ->  | AK118: =MAX(0,AI118-AG118-AH118) ->  | AM118: 2045-04-01 | AN118: 0 | AO118: 0 | AP118: 327 | AQ118: 375
P119: Cuota resto | R119: =R117*R115 ->  | S119: =S117*S115 ->  | T119: 14450 | U119: =U118/(T119-T118) -> 1.15625 | V119: Pensionista | W119: Activo | AB119: Pensión hombre (si llega a la máxima) | AC119: =IF(AND(R4=TRUE,AC113=0,AC117=0)=TRUE,MIN(AC115*(1+AC118),AC116),0) -> 0 | AF119: 92 | AM119: 2045-03-01 | AN119: 0 | AO119: 0 | AP119: 326 | AQ119: 374
G120: Alternativas sobre cómo conseguir los ingresos adicionales | P120: Mínimo personal | R120: =R109*W107 -> 1273 | S120: =S109*W107 -> 1054.5 | U120: Gasto deducible general | V120: 2600 | W120: 2000 | AB120: Pensión mujer (si no llega a la máxima) | AC120: =IF(AND(S4=TRUE,AC112<AC115,AC114=0)=TRUE,AC112,0) -> 0 | AF120: 93 | AM120: 2045-02-01 | AN120: 0 | AO120: 0 | AP120: 325 | AQ120: 373
G121: Las opciones A, B y C son tres alternativas de ahorro para el usuario. Puede elegir una de ellas o combinarlas en distintos grados. | H121: Para igualar ingresos y gastos el primer año tras la jubilación | J121: Para compensar pérdidas de poder adquisitivo de la pensión durante el resto de la jubilación | P121: Total cuota | R121: =MAX(MIN(R119+R118-R120,V122*(R105-V123)),0) ->  | S121: =MAX(MIN(S119+S118-S120,W122*(S105-W123)),0) ->  | U121: Cotización SS | V121: 0 | W121: 0.0635 | AB121: Máxima sin incentivo y con complemento | AC121: =AC115+AC109*AC110*0.5 -> 38834.40733 | AM121: 2045-01-01 | AN121: 0 | AO121: 0 | AP121: 324 | AQ121: 372
P122: Ingresos netos | R122: =R107-R121-R111*R105 ->  | S122: =S107-S121-S111*IF($R$6=TRUE,MAX($R$14*12,MIN($R$15*12,S105)),FV($C$76,$U$75,0,-Base*12)*(1+$C$77)^(-$U$75)) ->  | U122: Límite cuota | V122: 0.43 | W122: 0.43 | AB122: Pensión mujer sin incentivo (si llega a la máxima totalmente) | AC122: =IF(AND(S4=TRUE,AC114=0,AC120=0,AC106=0,AC110>AC115)=TRUE,MIN(AC112,AC121),0) -> 0 | AM122: 2044-12-01 | AN122: 0 | AO122: 0 | AP122: 323 | AQ122: 371
L123: Total | P123: Tipo medio | R123: =R121/R107 ->  | S123: =S121/S107 ->  | U123: Mínimo excluido | V123: 12600 | W123: 12000 | AB123: Complemento no aplicado | AC123: =MAX(0,AC109-AC115/AC110+1) ->  | AM123: 2044-11-01 | AN123: 0 | AO123: =AN123 -> 0 | AP123: 322 | AQ123: 370
G124: A. Con ahorro periódico (adicional al ya previsto) | H124: =IFERROR(MAX(T96,0),0) -> 0 | J124: =IFERROR(MAX(X96,0),0) -> 0 | L124: =J124+H124 -> 0 | AB124: Pensión mujer sin incentivo (si llega a la máxima parcialmente) | AC124: =IF(AND(S4=TRUE,AC114=0,AC120=0,AC122=0,AC106=0)=TRUE,AC115+0.5*AC123*AC110,0) -> 0 | AM124: 2044-10-01 | AN124: 0 | AO124: =AN124*(1+NOMINAL($C$77,12)/12)^(ROW()-ROW($AM$123)) -> 0 | AP124: 321 | AQ124: 369
G125: B. Con una aportación única en el momento actual | H125: =IFERROR(T99,0) -> 0 | J125: =IFERROR(MAX(X99,0),0) -> 0 | L125: =J125+H125 -> 0 | P125: TRATAMIENTO FISCAL RENTA VITALICIA | AB125: Máxima con incentivo | AC125: =AC115*(1+AC118) ->  | AM125: 2044-09-01 | AN125: 0 | AO125: 0 | AP125: 320 | AQ125: 368
G126: C. Con una aportación única en el momento de la jubilación | H126: =IFERROR(S99,0) -> 0 | J126: =IFERROR(MAX(W99,0),0) -> 0 | L126: =J126+H126 -> 0 | AB126: Máxima con incentivo y complemento | AC126: =AC125+AC109*AC111*0.5 ->  | AM126: 2044-08-01 | AN126: 0 | AO126: 0 | AP126: 319 | AQ126: 367
P127: Edad contratación | Q127: % que tributa | S127: Importe renta | T127: Tipo gravamen 2016 | AB127: Pensión mujer con incentivo (si llega a la máxima totalmente) | AC127: =IF(AND(S4=TRUE,AC114=0,AC120=0,AC124=0,AC106>0,AC111>AC125)=TRUE,MIN(AC112,AC126,AC116),0) ->  | AM127: 2044-07-01 | AN127: 0 | AO127: 0 | AP127: 318 | AQ127: 366
P128: 0 | Q128: 0.4 | S128: 0 | T128: 0.19 | AB128: Complemento no aplicado | AC128: =MAX(0,AC109-AC125/AC111+1) ->  | AM128: 2044-06-01 | AN128: 0 | AO128: 0 | AP128: 317 | AQ128: 365
P129: 40 | Q129: 0.35 | S129: 6000 | T129: 0.21 | AB129: Pensión mujer con incentivo (si llega a la máxima parcialmente) | AC129: =IF(AND(S4=TRUE,AC114=0,AC120=0,AC122=0,AC124=0,AC127=0,AC106>0)=TRUE,MIN(AC125+0.5*AC128*AC111,AC116),0) ->  | AM129: 2044-05-01 | AN129: 0 | AO129: 0 | AP129: 316 | AQ129: 364
P130: 50 | Q130: 0.28 | S130: 50000 | T130: 0.23 | AB130: Importe de la pensión | AC130: =SUM(AC129,AC127,AC124,AC122,AC120,AC119,AC117,AC114,AC113) ->  | AM130: 2044-04-01 | AN130: 0 | AO130: 0 | AP130: 315 | AQ130: 363
P131: 60 | Q131: 0.24 | AB131: Importe de la SS | AC131: =D33 -> 2561.92 | AM131: 2044-03-01 | AN131: 0 | AO131: 0 | AP131: 314 | AQ131: 362
P132: 66 | Q132: 0.2 | AB132: Anual | AC132: =AC131*14 -> 35866.88 | AM132: 2044-02-01 | AN132: 0 | AO132: 0 | AP132: 313 | AQ132: 361
P133: 70 | Q133: 0.08 | AM133: 2044-01-01 | AN133: 0 | AO133: 0 | AP133: 312 | AQ133: 360
AM134: 2043-12-01 | AN134: 0 | AO134: 0 | AP134: 311 | AQ134: 359
AM135: 2043-11-01 | AN135: 0 | AO135: 0 | AP135: 310 | AQ135: 358
AM136: 2043-10-01 | AN136: 0 | AO136: 0 | AP136: 309 | AQ136: 357
AM137: 2043-09-01 | AN137: 0 | AO137: 0 | AP137: 308 | AQ137: 356
AM138: 2043-08-01 | AN138: 0 | AO138: 0 | AP138: 307 | AQ138: 355
AM139: 2043-07-01 | AN139: 0 | AO139: 0 | AP139: 306 | AQ139: 354
AM140: 2043-06-01 | AN140: 0 | AO140: 0 | AP140: 305 | AQ140: 353
AM141: 2043-05-01 | AN141: 0 | AO141: 0 | AP141: 304 | AQ141: 352
AM142: 2043-04-01 | AN142: 0 | AO142: 0 | AP142: 303 | AQ142: 351
AM143: 2043-03-01 | AN143: 0 | AO143: 0 | AP143: 302 | AQ143: 350
AM144: 2043-02-01 | AN144: 0 | AO144: 0 | AP144: 301 | AQ144: 349
AM145: 2043-01-01 | AN145: 0 | AO145: 0 | AP145: 300 | AQ145: 348
AM146: 2042-12-01 | AN146: 0 | AO146: 0 | AP146: 299 | AQ146: 347
AM147: 2042-11-01 | AN147: 0 | AO147: 0 | AP147: 298 | AQ147: 346
AM148: 2042-10-01 | AN148: 0 | AO148: 0 | AP148: 297 | AQ148: 345
AM149: 2042-09-01 | AN149: 0 | AO149: 0 | AP149: 296 | AQ149: 344
AM150: 2042-08-01 | AN150: 0 | AO150: 0 | AP150: 295 | AQ150: 343
AM151: 2042-07-01 | AN151: 0 | AO151: 0 | AP151: 294 | AQ151: 342
AM152: 2042-06-01 | AN152: 0 | AO152: 0 | AP152: 293 | AQ152: 341
AM153: 2042-05-01 | AN153: 0 | AO153: 0 | AP153: 292 | AQ153: 340
AM154: 2042-04-01 | AN154: 0 | AO154: 0 | AP154: 291 | AQ154: 339
AM155: 2042-03-01 | AN155: 0 | AO155: 0 | AP155: 290 | AQ155: 338
AM156: 2042-02-01 | AN156: 0 | AO156: 0 | AP156: 289 | AQ156: 337
AM157: 2042-01-01 | AN157: 0 | AO157: 0 | AP157: 288 | AQ157: 336
AM158: 2041-12-01 | AN158: 0 | AO158: 0 | AP158: 287 | AQ158: 335
AM159: 2041-11-01 | AN159: 0 | AO159: 0 | AP159: 286 | AQ159: 334
B160: Calculadora básica de ahorro para la jubilación (cuantías brutas, sin fiscalidad) | AM160: 2041-10-01 | AN160: 0 | AO160: 0 | AP160: 285 | AQ160: 333
AM161: 2041-09-01 | AN161: =IF(AND(AP161>=0,AQ161>=0),IF($R$6=TRUE,MIN(Ingresos/12,$R$15),MIN(Base,$R$15)),IF($R$6=TRUE,IF(AQ161>=0,$R$14,0.5*$R$14),0))*(1+$C$76)^(YEAR(AM161)-YEAR($S$74)) -> 0 | AO161: 0 | AP161: 284 | AQ161: 332
B162: ¿Cuánto capital conseguiré conociendo la aportación? | AM162: 2041-08-01 | AN162: 0 | AO162: 0 | AP162: 283 | AQ162: =AP162+48 -> 331
AM163: =EDATE(AM162,-1) -> 2041-07-01 | AN163: 0 | AO163: 0 | AP163: =AP162-1 -> 282 | AQ163: 330
B164: Aportación inicial mensual | C164: 100 | AM164: 2041-06-01 | AN164: 0 | AO164: 0 | AP164: 281 | AQ164: 329
B165: Incremento anual de las aportaciones | C165: 0.01 | AM165: 2041-05-01 | AN165: 0 | AO165: 0 | AP165: 280 | AQ165: 328
B166: Años que quedan hasta la jubilación | C166: 25 | AM166: 2041-04-01 | AN166: 0 | AO166: 0 | AP166: 279 | AQ166: 327
B167: Rentabilidad del ahorro | C167: 0.03 | AM167: 2041-03-01 | AN167: 0 | AO167: 0 | AP167: 278 | AQ167: 326
B168: Capital acumulado a la jubilación (€ brutos de la jubilación) | C168: =IFERROR(C164*12*IF(C165=C167,C166*(1+C165)^(C166-1),(((1+C167)^C166-(1+C165)^C166)/(C167-C165)))*C167*(1+C167)^(1/12)/NOMINAL(C167,12),0) -> 49468.24604 | AM168: 2041-02-01 | AN168: 0 | AO168: 0 | AP168: 277 | AQ168: 325
AM169: 2041-01-01 | AN169: 0 | AO169: 0 | AP169: 276 | AQ169: 324
B170: ¿Cuánto debo ahorrar para conseguir un capital deseado? | AM170: 2040-12-01 | AN170: 0 | AO170: 0 | AP170: 275 | AQ170: 323
AM171: 2040-11-01 | AN171: 0 | AO171: 0 | AP171: 274 | AQ171: 322
B172: Capital que deseo acumular a la jubilación (€ brutos de la jubilación) | C172: 100000 | AM172: 2040-10-01 | AN172: 0 | AO172: 0 | AP172: 273 | AQ172: 321
B173: Incremento anual de las aportaciones | C173: 0.01 | AM173: 2040-09-01 | AN173: 0 | AO173: 0 | AP173: 272 | AQ173: 320
B174: Años que quedan hasta la jubilación | C174: 25 | AM174: 2040-08-01 | AN174: 0 | AO174: 0 | AP174: 271 | AQ174: 319
B175: Rentabilidad del ahorro | C175: 0.03 | AM175: 2040-07-01 | AN175: 0 | AO175: 0 | AP175: 270 | AQ175: 318
B176: Aportación inicial mensual | C176: =IFERROR(C172/(IF(C173=C175,(C174*(1+C173)^(C174-1)),((1+C175)^C174-(1+C173)^C174)/(C175-C173))*C175*(1+C175)^(1/12)/NOMINAL(C175,12))/12,0) -> 202.14988 | AM176: 2040-06-01 | AN176: 0 | AO176: 0 | AP176: 269 | AQ176: 317
AM177: 2040-05-01 | AN177: 0 | AO177: 0 | AP177: 268 | AQ177: 316
AM178: 2040-04-01 | AN178: 0 | AO178: 0 | AP178: 267 | AQ178: 315
AM179: 2040-03-01 | AN179: 0 | AO179: 0 | AP179: 266 | AQ179: 314
AM180: 2040-02-01 | AN180: 0 | AO180: 0 | AP180: 265 | AQ180: 313
AM181: 2040-01-01 | AN181: 0 | AO181: 0 | AP181: 264 | AQ181: 312
AM182: 2039-12-01 | AN182: 0 | AO182: 0 | AP182: 263 | AQ182: 311
AM183: 2039-11-01 | AN183: 0 | AO183: 0 | AP183: 262 | AQ183: 310
AM184: 2039-10-01 | AN184: 0 | AO184: 0 | AP184: 261 | AQ184: 309
AM185: 2039-09-01 | AN185: 0 | AO185: 0 | AP185: 260 | AQ185: 308
AM186: 2039-08-01 | AN186: 0 | AO186: 0 | AP186: 259 | AQ186: 307
AM187: 2039-07-01 | AN187: 0 | AO187: 0 | AP187: 258 | AQ187: 306
AM188: 2039-06-01 | AN188: 0 | AO188: =AN188*(1+NOMINAL($C$77,12)/12)^(ROW()-ROW($AM$123)) -> 0 | AP188: 257 | AQ188: 305
AM189: 2039-05-01 | AN189: 0 | AO189: 0 | AP189: 256 | AQ189: 304
AM190: 2039-04-01 | AN190: 0 | AO190: 0 | AP190: 255 | AQ190: 303
AM191: 2039-03-01 | AN191: 0 | AO191: 0 | AP191: 254 | AQ191: 302
AM192: 2039-02-01 | AN192: 0 | AO192: 0 | AP192: 253 | AQ192: 301
AM193: 2039-01-01 | AN193: 0 | AO193: 0 | AP193: 252 | AQ193: 300
AM194: 2038-12-01 | AN194: 0 | AO194: 0 | AP194: 251 | AQ194: 299
AM195: 2038-11-01 | AN195: 0 | AO195: 0 | AP195: 250 | AQ195: 298
AM196: 2038-10-01 | AN196: 0 | AO196: 0 | AP196: 249 | AQ196: 297
AM197: 2038-09-01 | AN197: 0 | AO197: 0 | AP197: 248 | AQ197: 296
AM198: 2038-08-01 | AN198: 0 | AO198: 0 | AP198: 247 | AQ198: 295
AM199: 2038-07-01 | AN199: 0 | AO199: 0 | AP199: 246 | AQ199: 294
G200: Detalle de la obtención de la pensión pública mensual | AM200: 2038-06-01 | AN200: 0 | AO200: 0 | AP200: 245 | AQ200: 293
H201: € año jubilación | I201: € actuales | J201: € actuales tras impuestos | AM201: 2038-05-01 | AN201: 0 | AO201: 0 | AP201: 244 | AQ201: 292
G202: Base reguladora | H202: =AC101/14 -> 0 | I202: =H202*(1+$C$77)^(-$U$75) -> 0 | AM202: 2038-04-01 | AN202: 0 | AO202: 0 | AP202: 243 | AQ202: 291
... 196 more rows
